Workbook

Sheet Dashboard
Y1: VER-USFI-12-JMAY-2019-V1
D2: Packaging Material Final Buffer Stock vs Opening Stock Ratio | Y2: Dashboard Procurement.xlsm
B5: DASBOAD BY COLOR | U5: 1 | V5: ="Open "&MacroName -> Open Dashboard Procurement.xlsm
U6: 2 | V6: Macro akan membaca data dan menampilkan
V7: CATEGORY ALL
V8: SUPPLIER ALL
U10: 3.A | V10: Untuk menampilkan Category Merah
V11: Pilih Category di Category kotak Merah
U12: 3.B | V12: Untuk menampilkan Category Kuning
V13: Pilih Category di Category kotak Kuning
U14: 3.C | V14: Untuk menampilkan Category Kuning
V15: Pilih Category di Category kotak Kuning
U17: 4.A | V17: Untuk menampilkan Supplier Merah
V18: Pilih Supplier di Supplier kotak Merah
U19: 4.B | V19: Untuk menampilkan Supplier Kuning
V20: Pilih Supplier di Supplier kotak Kuning
E21: CATEGORY | M21: SUPPLIER | U21: 4.C | V21: Untuk menampilkan Supplier Kuning
V22: Pilih Supplier di Supplier kotak Kuning
E23: Category Kecap No 1 | I23: ALL | M23: ALL | Q23: PT 06 INTAN PERMATA
E25: Category Fabrico Cleaner | I25: Final Buffer Stock | M25: Final Buffer Stock | Q25: PT 04 PRIMA INDUSTRI
I26: 4362555.336 | M26: 568.9587995
E28: Category Bau Badan | I28: Opening Stock | M28: Opening Stock | Q28: PT 09 BERDAYA CIPTA BUNGKUS
I29: 8609873.383 | M29: 290.72

Sheet Cat Pivot
T1: Big C | U1: (All) | W1: Big C | X1: PC
A3: Material | B3: Material Description | C3: Category | D3: Big C | E3: UOM | F3: Sum of Final Buffer Stock Quantity | G3: Sum of Opening Stock Wk14 + 1 | J3: Material | K3: Material Description | L3: Category | M3: Big C | N3: UOM | O3: Sum of Final Buffer Stock Quantity | P3: Sum of Opening Stock Wk7 + 1 | Q3: Fulfillment | R3: Status | T3: Row Labels | U3: Count of Status | V3: Completion % | W3: Row Labels | X3: Count of Status | Y3: Completion %
A4: 20064731 | B4: TESTING 191 | C4: Category Cair Cair PW | D4: PC | E4: T | F4: 18 | G4: 48 | J4: =A4 -> 20064731 | K4: =B4 -> TESTING 191 | L4: Category Cair Cair PW | M4: PC | N4: T | O4: 18 | P4: 48 | Q4: =IF(O4=0,"no buffer stock target",IFERROR(P4/O4,"NA")) -> 2.666666667 | R4: =IF(Q4="no buffer stock target","no buffer stock target",(IF(Q4>=80%,"Completed","In Progress"))) -> Completed | T4: Completed | U4: 384 | V4: =U4/(U4+U5) -> 0.6095238095 | W4: Completed | X4: 256 | Y4: =X4/(X4+X5) -> 0.5791855204
A5: 20064732 | B5: TESTING 192 | C5: Category Cair Cair PW | D5: PC | E5: T | F5: 18 | G5: 10 | J5: =A5 -> 20064732 | K5: TESTING 192 | L5: Category Cair Cair PW | M5: PC | N5: T | O5: 18 | P5: 10 | Q5: =IF(O5=0,"no buffer stock target",IFERROR(P5/O5,"NA")) -> 0.5555555556 | R5: =IF(Q5="no buffer stock target","no buffer stock target",(IF(Q5>=80%,"Completed","In Progress"))) -> In Progress | T5: In Progress | U5: 246 | W5: In Progress | X5: 186
A6: 20064992 | B6: TESTING 53 | C6: Category Hand & Body Peduli | D6: PC | E6: KG | F6: 0 | J6: 20064992 | K6: TESTING 53 | L6: Category Hand & Body Peduli | M6: PC | N6: KG | O6: 0 | P6: 0 | Q6: no buffer stock target | R6: no buffer stock target | T6: no buffer stock target | U6: 482 | W6: no buffer stock target | X6: 290
A7: 20068583 | B7: TESTING 54 | C7: Category Kecap No 1 | D7: Non-PC | E7: T | F7: 113.3 | G7: 0 | J7: 20068583 | K7: TESTING 54 | L7: Category Kecap No 1 | M7: Non-PC | N7: T | O7: 113.3 | P7: 0 | Q7: 0 | R7: In Progress | T7: Grand Total | U7: 1112 | W7: Grand Total | X7: 732
A8: 20068810 | B8: TESTING 55 | C8: Category Hand & Body Peduli | D8: PC | E8: T | F8: 142.8915603 | G8: 0 | J8: 20068810 | K8: TESTING 55 | L8: Category Hand & Body Peduli | M8: PC | N8: T | O8: 142.8915603 | P8: 0 | Q8: 0 | R8: In Progress
A9: 20074075 | B9: TESTING 56 | C9: Category Peduli Rambut | D9: PC | E9: T | F9: 0 | J9: 20074075 | K9: TESTING 56 | L9: Category Peduli Rambut | M9: PC | N9: T | O9: 0 | P9: 0 | Q9: no buffer stock target | R9: no buffer stock target
A10: 20074080 | B10: TESTING 57 | C10: Category Peduli Rambut | D10: PC | E10: T | F10: 0 | J10: 20074080 | K10: TESTING 57 | L10: Category Peduli Rambut | M10: PC | N10: T | O10: 0 | P10: 0 | Q10: no buffer stock target | R10: no buffer stock target
A11: 20075079 | B11: TESTING 136 | C11: Category Kondisioner Serat | D11: Non-PC | E11: T | F11: 3 | G11: 6.2 | J11: 20075079 | K11: TESTING 136 | L11: Category Kondisioner Serat | M11: Non-PC | N11: T | O11: 3 | P11: 6.2 | Q11: 2.066666667 | R11: Completed | T11: Big C | U11: (All)
A12: 20075080 | B12: TESTING 137 | C12: Category Kondisioner Serat | D12: Non-PC | E12: T | F12: 2.5 | G12: 5.19 | J12: 20075080 | K12: TESTING 137 | L12: Category Kondisioner Serat | M12: Non-PC | N12: T | O12: 2.5 | P12: 5.19 | Q12: 2.076 | R12: Completed
A13: 20075211 | B13: TESTING 138 | C13: Category Kondisioner Serat | D13: Non-PC | E13: T | F13: 7 | G13: 6.7 | J13: 20075211 | K13: TESTING 138 | L13: Category Kondisioner Serat | M13: Non-PC | N13: T | O13: 7 | P13: 6.7 | Q13: 0.9571428571 | R13: Completed | T13: Count of Status | U13: Column Labels
A14: 20075235 | B14: TESTING 139 | C14: Category Kondisioner Serat | D14: Non-PC | E14: T | F14: 3 | G14: 6.2 | J14: 20075235 | K14: TESTING 139 | L14: Category Kondisioner Serat | M14: Non-PC | N14: T | O14: 3 | P14: 6.2 | Q14: 2.066666667 | R14: Completed | T14: Row Labels | U14: Completed | V14: In Progress | W14: no buffer stock target | X14: Grand Total
A15: 20075237 | B15: TESTING 140 | C15: Category Kondisioner Serat | D15: Non-PC | E15: T | F15: 5 | G15: 5.23 | J15: 20075237 | K15: TESTING 140 | L15: Category Kondisioner Serat | M15: Non-PC | N15: T | O15: 5 | P15: 5.23 | Q15: 1.046 | R15: Completed | T15: Baby Care & Others | U15: 4 | V15: 9 | W15: 20 | X15: 33
A16: 20086155 | B16: TESTING 103 | C16: Category Bar Bareng | D16: PC | E16: M | F16: 105365.8537 | G16: 194965.8537 | J16: 20086155 | K16: TESTING 103 | L16: Category Bar Bareng | M16: PC | N16: M | O16: 105365.8537 | P16: 194965.8537 | Q16: 1.85037037 | R16: Completed | T16: Bango | U16: 20 | V16: 7 | W16: 6 | X16: 33
A17: 20205679 | B17: TESTING 58 | C17: Category Hand & Body Peduli | D17: PC | E17: KG | F17: 0 | J17: 20205679 | K17: TESTING 58 | L17: Category Hand & Body Peduli | M17: PC | N17: KG | O17: 0 | P17: 0 | Q17: no buffer stock target | R17: no buffer stock target | T17: Body | U17: 3 | X17: 3
A18: 20205687 | B18: TESTING 59 | C18: Category Hand & Body Peduli | D18: PC | E18: KG | F18: 0 | J18: 20205687 | K18: TESTING 59 | L18: Category Hand & Body Peduli | M18: PC | N18: KG | O18: 0 | P18: 0 | Q18: no buffer stock target | R18: no buffer stock target | T18: Deodorants & Fragrances | U18: 50 | V18: 38 | W18: 28 | X18: 116
A19: 20205690 | B19: TESTING 60 | C19: Category Hand & Body Peduli | D19: PC | E19: T | F19: 396.7585882 | G19: 0 | J19: 20205690 | K19: TESTING 60 | L19: Category Hand & Body Peduli | M19: PC | N19: T | O19: 396.7585882 | P19: 0 | Q19: 0 | R19: In Progress | T19: Fabric Conditioners | U19: 17 | V19: 1 | W19: 28 | X19: 46
A20: 20207104 | B20: TESTING 193 | C20: Category Peduli Rambut | D20: PC | E20: T | F20: 14 | G20: 15 | J20: 20207104 | K20: TESTING 193 | L20: Category Peduli Rambut | M20: PC | N20: T | O20: 14 | P20: 15 | Q20: 1.071428571 | R20: Completed | T20: Fabrics Cleaning | U20: 22 | V20: 25 | W20: 34 | X20: 81
A21: 20207105 | B21: TESTING 194 | C21: Category Peduli Rambut | D21: PC | E21: T | F21: 14 | G21: 15 | J21: 20207105 | K21: TESTING 194 | L21: Category Peduli Rambut | M21: PC | N21: T | O21: 14 | P21: 15 | Q21: 1.071428571 | R21: Completed | T21: Face | U21: 77 | V21: 33 | W21: 89 | X21: 199
A22: 20227725 | B22: TESTING 61 | C22: Category Cair Cair PW | D22: PC | E22: KG | F22: 0 | J22: 20227725 | K22: TESTING 61 | L22: Category Cair Cair PW | M22: PC | N22: KG | O22: 0 | P22: 0 | Q22: no buffer stock target | R22: no buffer stock target | T22: HAIR CARE | U22: 37 | V22: 30 | W22: 58 | X22: 125
A23: 20235325 | B23: TESTING 29 | C23: Category Muka | D23: PC | E23: M | F23: 129600 | G23: 153600 | J23: 20235325 | K23: TESTING 29 | L23: Category Muka | M23: PC | N23: M | O23: 129600 | P23: 153600 | Q23: 1.185185185 | R23: Completed | T23: Hand & Body Care | U23: 12 | V23: 20 | W23: 11 | X23: 43
A24: 20235326 | B24: TESTING 30 | C24: Category Muka | D24: PC | E24: M | F24: 168000 | G24: 576000 | J24: 20235326 | K24: TESTING 30 | L24: Category Muka | M24: PC | N24: M | O24: 168000 | P24: 576000 | Q24: 3.428571429 | R24: Completed | T24: HOUSEHOLD CARE | U24: 2 | V24: 13 | W24: 37 | X24: 52
A25: 20269437 | B25: TESTING 195 | C25: Category Pelihara Mulut | D25: PC | E25: T | F25: 0 | G25: 488 | J25: 20269437 | K25: TESTING 195 | L25: Category Pelihara Mulut | M25: PC | N25: T | O25: 0 | P25: 488 | Q25: no buffer stock target | R25: no buffer stock target | T25: ICE CREAM | U25: 15 | V25: 1 | W25: 13 | X25: 29
A26: 20285561 | B26: TESTING 62 | C26: Category Hand & Body Peduli | D26: PC | E26: T | F26: 36.29835294 | G26: 0 | J26: 20285561 | K26: TESTING 62 | L26: Category Hand & Body Peduli | M26: PC | N26: T | O26: 36.29835294 | P26: 0 | Q26: 0 | R26: In Progress | T26: Leaf & Powder Tea | U26: 26 | V26: 7 | W26: 36 | X26: 69
A27: 20288686 | B27: TESTING 63 | C27: Category Aneka Kategori | D27: Non-PC | E27: KG | F27: 0 | J27: 20288686 | K27: TESTING 63 | L27: Category Aneka Kategori | M27: Non-PC | N27: KG | O27: 0 | P27: 0 | Q27: no buffer stock target | R27: no buffer stock target | T27: Multiple Categories | U27: 1 | W27: 18 | X27: 19
A28: 20295913 | B28: TESTING 141 | C28: Category Kondisioner Serat | D28: Non-PC | E28: T | F28: 0 | J28: 20295913 | K28: TESTING 141 | L28: Category Kondisioner Serat | M28: Non-PC | N28: T | O28: 0 | P28: 0 | Q28: no buffer stock target | R28: no buffer stock target | T28: ORAL CARE | U28: 40 | V28: 20 | W28: 32 | X28: 92
A29: 20298777 | B29: TESTING 109 | C29: Category Daun dan Bubuk Teh | D29: Non-PC | E29: M | F29: 10500 | G29: 28900 | J29: 20298777 | K29: TESTING 109 | L29: Category Daun dan Bubuk Teh | M29: Non-PC | N29: M | O29: 10500 | P29: 28900 | Q29: 2.752380952 | R29: Completed | T29: PW Bar | U29: 29 | V29: 20 | W29: 10 | X29: 59
A30: 21037332 | B30: TESTING 240 | C30: Category Muka | D30: PC | E30: T | F30: 50 | G30: 144 | J30: 21037332 | K30: TESTING 240 | L30: Category Muka | M30: PC | N30: T | O30: 50 | P30: 144 | Q30: 2.88 | R30: Completed | T30: PW Liquid | U30: 4 | V30: 16 | W30: 41 | X30: 61
A31: 21037333 | B31: TESTING 31 | C31: Category Muka | D31: PC | E31: T | F31: 0 | G31: 0 | J31: 21037333 | K31: TESTING 31 | L31: Category Muka | M31: PC | N31: T | O31: 0 | P31: 0 | Q31: no buffer stock target | R31: no buffer stock target | T31: Royco | U31: 14 | V31: 4 | W31: 15 | X31: 33
A32: 21037340 | B32: TESTING 32 | C32: Category Muka | D32: PC | E32: T | F32: 0 | G32: 0 | J32: 21037340 | K32: TESTING 32 | L32: Category Muka | M32: PC | N32: T | O32: 0 | P32: 0 | Q32: no buffer stock target | R32: no buffer stock target | T32: Spreads and Cooking Products | U32: 11 | V32: 2 | W32: 6 | X32: 19
A33: 21070446 | B33: TESTING 241 | C33: Category Fabrico Cleaner | D33: Non-PC | E33: T | F33: 100 | G33: 205 | J33: 21070446 | K33: TESTING 241 | L33: Category Fabrico Cleaner | M33: Non-PC | N33: T | O33: 100 | P33: 205 | Q33: 2.05 | R33: Completed | T33: Grand Total | U33: 384 | V33: 246 | W33: 482 | X33: 1112
A34: 21071674 | B34: TESTING 142 | C34: Category Kondisioner Serat | D34: Non-PC | E34: T | F34: 2.5 | G34: 5.01 | J34: 21071674 | K34: TESTING 142 | L34: Category Kondisioner Serat | M34: Non-PC | N34: T | O34: 2.5 | P34: 5.01 | Q34: 2.004 | R34: Completed
A35: 21072071 | B35: TESTING 28 | C35: Category Cair Cair PW | D35: PC | E35: T | F35: 112 | G35: 276 | J35: 21072071 | K35: TESTING 28 | L35: Category Cair Cair PW | M35: PC | N35: T | O35: 112 | P35: 276 | Q35: 2.464285714 | R35: Completed
A36: 21074502 | B36: TESTING 209 | C36: Category Pelihara Mulut | D36: PC | E36: T | F36: 61.20082353 | G36: 21.051 | J36: 21074502 | K36: TESTING 209 | L36: Category Pelihara Mulut | M36: PC | N36: T | O36: 61.20082353 | P36: 21.051 | Q36: 0.3439659597 | R36: In Progress
A37: 21075139 | B37: TESTING 143 | C37: Category Fabrico Cleaner | D37: Non-PC | E37: T | F37: 0 | J37: 21075139 | K37: TESTING 143 | L37: Category Fabrico Cleaner | M37: Non-PC | N37: T | O37: 0 | P37: 0 | Q37: no buffer stock target | R37: no buffer stock target
A38: 21075273 | B38: TESTING 210 | C38: Category Pelihara Mulut | D38: PC | E38: T | F38: 184.9577059 | G38: 359.178 | J38: 21075273 | K38: TESTING 210 | L38: Category Pelihara Mulut | M38: PC | N38: T | O38: 184.9577059 | P38: 359.178 | Q38: 1.941946664 | R38: Completed
A39: 21075288 | B39: TESTING 144 | C39: Category Fabrico Cleaner | D39: Non-PC | E39: T | F39: 13.90199676 | G39: 14.29 | J39: 21075288 | K39: TESTING 144 | L39: Category Fabrico Cleaner | M39: Non-PC | N39: T | O39: 13.90199676 | P39: 14.29 | Q39: 1.027909893 | R39: Completed
A40: 21075289 | B40: TESTING 145 | C40: Category Fabrico Cleaner | D40: Non-PC | E40: T | F40: 19.37482476 | G40: 19.45 | J40: 21075289 | K40: TESTING 145 | L40: Category Fabrico Cleaner | M40: Non-PC | N40: T | O40: 19.37482476 | P40: 19.45 | Q40: 1.003880048 | R40: Completed
A41: 21075828 | B41: TESTING 146 | C41: Category Peduli Rumah Tangga | D41: Non-PC | E41: T | F41: 0 | J41: 21075828 | K41: TESTING 146 | L41: Category Peduli Rumah Tangga | M41: Non-PC | N41: T | O41: 0 | P41: 0 | Q41: no buffer stock target | R41: no buffer stock target
A42: 21135205 | B42: TESTING 147 | C42: Category Fabrico Cleaner | D42: Non-PC | E42: T | F42: 0 | J42: 21135205 | K42: TESTING 147 | L42: Category Fabrico Cleaner | M42: Non-PC | N42: T | O42: 0 | P42: 0 | Q42: no buffer stock target | R42: no buffer stock target
A43: 21135206 | B43: TESTING 148 | C43: Category Fabrico Cleaner | D43: Non-PC | E43: T | F43: 0 | J43: 21135206 | K43: TESTING 148 | L43: Category Fabrico Cleaner | M43: Non-PC | N43: T | O43: 0 | P43: 0 | Q43: no buffer stock target | R43: no buffer stock target
A44: 21138450 | B44: TESTING 149 | C44: Category Fabrico Cleaner | D44: Non-PC | E44: T | F44: 0 | J44: 21138450 | K44: TESTING 149 | L44: Category Fabrico Cleaner | M44: Non-PC | N44: T | O44: 0 | P44: 0 | Q44: no buffer stock target | R44: no buffer stock target
A45: 21138459 | B45: TESTING 150 | C45: Category Fabrico Cleaner | D45: Non-PC | E45: T | F45: 3 | G45: 6.17 | J45: 21138459 | K45: TESTING 150 | L45: Category Fabrico Cleaner | M45: Non-PC | N45: T | O45: 3 | P45: 6.17 | Q45: 2.056666667 | R45: Completed
A46: 21138464 | B46: TESTING 151 | C46: Category Fabrico Cleaner | D46: Non-PC | E46: T | F46: 0 | J46: 21138464 | K46: TESTING 151 | L46: Category Fabrico Cleaner | M46: Non-PC | N46: T | O46: 0 | P46: 0 | Q46: no buffer stock target | R46: no buffer stock target
A47: 21139000 | B47: TESTING 211 | C47: Category Pelihara Mulut | D47: PC | E47: T | F47: 0 | G47: 840 | J47: 21139000 | K47: TESTING 211 | L47: Category Pelihara Mulut | M47: PC | N47: T | O47: 0 | P47: 840 | Q47: no buffer stock target | R47: no buffer stock target
A48: 21139027 | B48: TESTING 33 | C48: Category Muka | D48: PC | E48: M | F48: 62400 | G48: 9600 | J48: 21139027 | K48: TESTING 33 | L48: Category Muka | M48: PC | N48: M | O48: 62400 | P48: 9600 | Q48: 0.1538461538 | R48: In Progress
A49: 21140526 | B49: TESTING 152 | C49: Category Kondisioner Serat | D49: Non-PC | E49: T | F49: 0 | J49: 21140526 | K49: TESTING 152 | L49: Category Kondisioner Serat | M49: Non-PC | N49: T | O49: 0 | P49: 0 | Q49: no buffer stock target | R49: no buffer stock target
A50: 21140527 | B50: TESTING 153 | C50: Category Kondisioner Serat | D50: Non-PC | E50: T | F50: 0 | J50: 21140527 | K50: TESTING 153 | L50: Category Kondisioner Serat | M50: Non-PC | N50: T | O50: 0 | P50: 0 | Q50: no buffer stock target | R50: no buffer stock target
A51: 21143282 | B51: TESTING 154 | C51: Category Fabrico Cleaner | D51: Non-PC | E51: T | F51: 0 | J51: 21143282 | K51: TESTING 154 | L51: Category Fabrico Cleaner | M51: Non-PC | N51: T | O51: 0 | P51: 0 | Q51: no buffer stock target | R51: no buffer stock target
A52: 21145375 | B52: TESTING 64 | C52: Category Peduli Rambut | D52: PC | E52: T | F52: 127.872 | G52: 0 | J52: 21145375 | K52: TESTING 64 | L52: Category Peduli Rambut | M52: PC | N52: T | O52: 127.872 | P52: 0 | Q52: 0 | R52: In Progress
A53: 21149159 | B53: TESTING 181 | C53: Category Kondisioner Serat | D53: Non-PC | E53: T | F53: 0 | J53: 21149159 | K53: TESTING 181 | L53: Category Kondisioner Serat | M53: Non-PC | N53: T | O53: 0 | P53: 0 | Q53: no buffer stock target | R53: no buffer stock target
A54: 21150299 | B54: TESTING 01 | C54: Category Baby Baby | D54: PC | E54: M | F54: 24000 | G54: 53000 | J54: 21150299 | K54: TESTING 01 | L54: =C54 -> Category Baby Baby | M54: PC | N54: M | O54: 24000 | P54: 53000 | Q54: 2.208333333 | R54: Completed
A55: 21150302 | B55: TESTING 02 | C55: Category Baby Baby | D55: PC | E55: M | F55: 24000 | G55: 36000 | J55: =A55 -> 21150302 | K55: TESTING 02 | L55: Category Baby Baby | M55: PC | N55: M | O55: 24000 | P55: 36000 | Q55: 1.5 | R55: Completed
A56: 21152885 | B56: TESTING 03 | C56: Category Baby Baby | D56: PC | E56: M | F56: 24000 | G56: 95000 | J56: 21152885 | K56: TESTING 03 | L56: Category Baby Baby | M56: PC | N56: M | O56: 24000 | P56: 95000 | Q56: 3.958333333 | R56: Completed
A57: 21152887 | B57: TESTING 04 | C57: Category Baby Baby | D57: PC | E57: M | F57: 24000 | G57: 16000 | J57: 21152887 | K57: TESTING 04 | L57: Category Baby Baby | M57: PC | N57: M | O57: 24000 | P57: 16000 | Q57: 0.6666666667 | R57: In Progress
A58: 21154381 | B58: TESTING 196 | C58: Category Muka | D58: PC | E58: T | F58: 0 | J58: 21154381 | K58: TESTING 196 | L58: Category Muka | M58: PC | N58: T | O58: 0 | P58: 0 | Q58: no buffer stock target | R58: no buffer stock target
A59: 21154382 | B59: TESTING 197 | C59: Category Muka | D59: PC | E59: T | F59: 0 | J59: 21154382 | K59: TESTING 197 | L59: Category Muka | M59: PC | N59: T | O59: 0 | P59: 0 | Q59: no buffer stock target | R59: no buffer stock target
A60: 21182054 | B60: TESTING 104 | C60: Category Bar Bareng | D60: PC | E60: M | F60: 383442.2658 | G60: 524242.2658 | J60: 21182054 | K60: TESTING 104 | L60: Category Bar Bareng | M60: PC | N60: M | O60: 383442.2658 | P60: 524242.2658 | Q60: 1.3672 | R60: Completed
A61: 21182147 | B61: TESTING 110 | C61: Category Daun dan Bubuk Teh | D61: Non-PC | E61: T | F61: 23000 | G61: 48804 | J61: 21182147 | K61: TESTING 110 | L61: Category Daun dan Bubuk Teh | M61: Non-PC | N61: T | O61: 23000 | P61: 48804 | Q61: 2.121913043 | R61: Completed
A62: 21185682 | B62: TESTING 155 | C62: Category Cair Cair PW | D62: PC | E62: T | F62: 1 | G62: 1.05 | J62: 21185682 | K62: TESTING 155 | L62: Category Cair Cair PW | M62: PC | N62: T | O62: 1 | P62: 1.05 | Q62: 1.05 | R62: Completed
A63: 21185717 | B63: TESTING 65 | C63: Category Hand & Body Peduli | D63: PC | E63: KG | F63: 0 | J63: 21185717 | K63: TESTING 65 | L63: Category Hand & Body Peduli | M63: PC | N63: KG | O63: 0 | P63: 0 | Q63: no buffer stock target | R63: no buffer stock target
A64: 21188579 | B64: TESTING 156 | C64: Category Kondisioner Serat | D64: Non-PC | E64: T | F64: 0 | J64: 21188579 | K64: TESTING 156 | L64: Category Kondisioner Serat | M64: Non-PC | N64: T | O64: 0 | P64: 0 | Q64: no buffer stock target | R64: no buffer stock target
A65: 21189043 | B65: TESTING 242 | C65: Category Muka | D65: PC | E65: T | F65: 100 | G65: 320 | J65: 21189043 | K65: TESTING 242 | L65: Category Muka | M65: PC | N65: T | O65: 100 | P65: 320 | Q65: 3.2 | R65: Completed
A66: 21189044 | B66: TESTING 34 | C66: Category Muka | D66: PC | E66: M | F66: 5700 | G66: 50400 | J66: 21189044 | K66: TESTING 34 | L66: Category Muka | M66: PC | N66: M | O66: 5700 | P66: 50400 | Q66: 8.842105263 | R66: Completed
A67: 62108478 | B67: TESTING 48 | C67: Category Kecap No 1 | D67: Non-PC | E67: KG | F67: 147.27 | G67: 0 | J67: 62108478 | K67: TESTING 48 | L67: Category Kecap No 1 | M67: Non-PC | N67: KG | O67: 147.27 | P67: 0 | Q67: 0 | R67: In Progress
A68: 62108911 | B68: TESTING 66 | C68: Category Kecap No 1 | D68: Non-PC | E68: T | F68: 642 | G68: 0 | J68: 62108911 | K68: TESTING 66 | L68: Category Kecap No 1 | M68: Non-PC | N68: T | O68: 642 | P68: 0 | Q68: 0 | R68: In Progress
A69: 62138001 | B69: TESTING 49 | C69: Category Aneka Kategori | D69: Non-PC | E69: KG | F69: 0 | J69: 62138001 | K69: TESTING 49 | L69: Category Aneka Kategori | M69: Non-PC | N69: KG | O69: 0 | P69: 0 | Q69: =IF(O69=0,"no buffer stock target",IFERROR(P69/O69,"NA")) -> no buffer stock target | R69: =IF(Q69="no buffer stock target","no buffer stock target",(IF(Q69>=80%,"Completed","In Progress"))) -> no buffer stock target
A70: 62138128 | B70: TESTING 50 | C70: Category Aneka Kategori | D70: Non-PC | E70: KG | F70: 0 | J70: 62138128 | K70: TESTING 50 | L70: Category Aneka Kategori | M70: Non-PC | N70: KG | O70: 0 | P70: 0 | Q70: no buffer stock target | R70: no buffer stock target
A71: 62138166 | B71: TESTING 105 | C71: Category Bar Bareng | D71: PC | E71: M | F71: 287910.3855 | G71: 947910.3855 | J71: 62138166 | K71: TESTING 105 | L71: Category Bar Bareng | M71: PC | N71: M | O71: 287910.3855 | P71: 947910.3855 | Q71: 3.292379967 | R71: Completed
A72: 62138174 | B72: TESTING 106 | C72: Category Bar Bareng | D72: PC | E72: M | F72: 324988.9291 | G72: 596588.9291 | J72: 62138174 | K72: TESTING 106 | L72: Category Bar Bareng | M72: PC | N72: M | O72: 324988.9291 | P72: 596588.9291 | Q72: 1.835720776 | R72: Completed
A73: 62145959 | B73: TESTING 35 | C73: Category Pelihara Mulut | D73: PC | E73: M | F73: 480000 | G73: 1255200 | J73: 62145959 | K73: TESTING 35 | L73: Category Pelihara Mulut | M73: PC | N73: M | O73: 480000 | P73: 1255200 | Q73: 2.615 | R73: Completed
A74: 62176898 | B74: TESTING 67 | C74: Category Aneka Kategori | D74: Non-PC | E74: KG | F74: 0 | J74: 62176898 | K74: TESTING 67 | L74: Category Aneka Kategori | M74: Non-PC | N74: KG | O74: 0 | P74: 0 | Q74: no buffer stock target | R74: no buffer stock target
A75: 62178498 | B75: TESTING 36 | C75: Category Muka | D75: PC | E75: M | F75: 194400 | G75: 460800 | J75: 62178498 | K75: TESTING 36 | L75: Category Muka | M75: PC | N75: M | O75: 194400 | P75: 460800 | Q75: 2.37037037 | R75: Completed
A76: 62178511 | B76: TESTING 37 | C76: Category Muka | D76: PC | E76: M | F76: 85100 | G76: 0 | J76: 62178511 | K76: TESTING 37 | L76: Category Muka | M76: PC | N76: M | O76: 85100 | P76: 0 | Q76: 0 | R76: In Progress
A77: 62179445 | B77: TESTING 68 | C77: Category Aneka Kategori | D77: Non-PC | E77: KG | F77: 0 | J77: 62179445 | K77: TESTING 68 | L77: Category Aneka Kategori | M77: Non-PC | N77: KG | O77: 0 | P77: 0 | Q77: no buffer stock target | R77: no buffer stock target
A78: 62179446 | B78: TESTING 69 | C78: Category Aneka Kategori | D78: Non-PC | E78: KG | F78: 0 | J78: 62179446 | K78: TESTING 69 | L78: Category Aneka Kategori | M78: Non-PC | N78: KG | O78: 0 | P78: 0 | Q78: no buffer stock target | R78: no buffer stock target
A79: 62179863 | B79: TESTING 38 | C79: Category Pelihara Mulut | D79: PC | E79: M | F79: 192000 | G79: 336000 | J79: 62179863 | K79: TESTING 38 | L79: Category Pelihara Mulut | M79: PC | N79: M | O79: 192000 | P79: 336000 | Q79: 1.75 | R79: Completed
A80: 62179867 | B80: TESTING 39 | C80: Category Pelihara Mulut | D80: PC | E80: M | F80: 72000 | G80: 340800 | J80: 62179867 | K80: TESTING 39 | L80: Category Pelihara Mulut | M80: PC | N80: M | O80: 72000 | P80: 340800 | Q80: 4.733333333 | R80: Completed
A81: 62179868 | B81: TESTING 40 | C81: Category Pelihara Mulut | D81: PC | E81: M | F81: 124800 | G81: 76800 | J81: 62179868 | K81: TESTING 40 | L81: Category Pelihara Mulut | M81: PC | N81: M | O81: 124800 | P81: 76800 | Q81: 0.6153846154 | R81: In Progress
A82: 62876704 | B82: TESTING 157 | C82: Category Fabrico Cleaner | D82: Non-PC | E82: T | F82: 0.81 | G82: 1.67 | J82: 62876704 | K82: TESTING 157 | L82: Category Fabrico Cleaner | M82: Non-PC | N82: T | O82: 0.81 | P82: 1.67 | Q82: 2.061728395 | R82: Completed
A83: 62878109 | B83: TESTING 212 | C83: Category Pelihara Mulut | D83: PC | E83: T | F83: 186.6327647 | G83: 389.223 | J83: 62878109 | K83: TESTING 212 | L83: Category Pelihara Mulut | M83: PC | N83: T | O83: 186.6327647 | P83: 389.223 | Q83: 2.085501978 | R83: Completed
A84: 62878112 | B84: TESTING 213 | C84: Category Pelihara Mulut | D84: PC | E84: T | F84: 146.8825294 | G84: 582.898 | J84: 62878112 | K84: TESTING 213 | L84: Category Pelihara Mulut | M84: PC | N84: T | O84: 146.8825294 | P84: 582.898 | Q84: 3.968463794 | R84: Completed
A85: 62888335 | B85: TESTING 107 | C85: Category Bar Bareng | D85: PC | E85: M | F85: 720263.5914 | G85: 918263.5914 | J85: 62888335 | K85: TESTING 107 | L85: Category Bar Bareng | M85: PC | N85: M | O85: 720263.5914 | P85: 918263.5914 | Q85: 1.27489936 | R85: Completed
A86: 62888461 | B86: TESTING 198 | C86: Category Peduli Rambut | D86: PC | E86: T | F86: 120 | G86: 120 | J86: 62888461 | K86: TESTING 198 | L86: Category Peduli Rambut | M86: PC | N86: T | O86: 120 | P86: 120 | Q86: 1 | R86: Completed
A87: 62888482 | B87: TESTING 199 | C87: Category Muka | D87: PC | E87: T | F87: 180 | G87: 180 | J87: =A87 -> 62888482 | K87: TESTING 199 | L87: Category Muka | M87: PC | N87: T | O87: 180 | P87: 180 | Q87: 1 | R87: Completed
A88: 62888804 | B88: TESTING 70 | C88: Category Bau Badan | D88: PC | E88: T | F88: 600 | G88: 0 | J88: 62888804 | K88: TESTING 70 | L88: Category Bau Badan | M88: PC | N88: T | O88: 600 | P88: 0 | Q88: 0 | R88: In Progress
A89: 67007478 | B89: TESTING 243 | C89: Category Bau Badan | D89: PC | E89: T | F89: 150 | G89: 150 | J89: 67007478 | K89: TESTING 243 | L89: Category Bau Badan | M89: PC | N89: T | O89: 150 | P89: 150 | Q89: 1 | R89: Completed
A90: 67007480 | B90: TESTING 244 | C90: Category Bau Badan | D90: PC | E90: T | F90: 0 | G90: 0 | J90: 67007480 | K90: TESTING 244 | L90: Category Bau Badan | M90: PC | N90: T | O90: 0 | P90: 0 | Q90: no buffer stock target | R90: no buffer stock target
A91: 67007482 | B91: TESTING 245 | C91: Category Bau Badan | D91: PC | E91: T | F91: 0 | G91: 0 | J91: 67007482 | K91: TESTING 245 | L91: Category Bau Badan | M91: PC | N91: T | O91: 0 | P91: 0 | Q91: no buffer stock target | R91: no buffer stock target
A92: 67007484 | B92: TESTING 246 | C92: Category Bau Badan | D92: PC | E92: T | F92: 150 | G92: 210 | J92: 67007484 | K92: TESTING 246 | L92: Category Bau Badan | M92: PC | N92: T | O92: 150 | P92: 210 | Q92: 1.4 | R92: Completed
A93: 67008388 | B93: TESTING 247 | C93: Category Bau Badan | D93: PC | E93: T | F93: 0 | G93: 0 | J93: 67008388 | K93: TESTING 247 | L93: Category Bau Badan | M93: PC | N93: T | O93: 0 | P93: 0 | Q93: no buffer stock target | R93: no buffer stock target
A94: 67008390 | B94: TESTING 248 | C94: Category Bau Badan | D94: PC | E94: T | F94: 300 | G94: 440 | J94: 67008390 | K94: TESTING 248 | L94: Category Bau Badan | M94: PC | N94: T | O94: 300 | P94: 440 | Q94: 1.466666667 | R94: Completed
A95: 67008404 | B95: TESTING 249 | C95: Category Bau Badan | D95: PC | E95: T | F95: 300 | G95: 340 | J95: 67008404 | K95: TESTING 249 | L95: Category Bau Badan | M95: PC | N95: T | O95: 300 | P95: 340 | Q95: 1.133333333 | R95: Completed
A96: 67008408 | B96: TESTING 250 | C96: Category Bau Badan | D96: PC | E96: T | F96: 0 | G96: 0 | J96: 67008408 | K96: TESTING 250 | L96: Category Bau Badan | M96: PC | N96: T | O96: 0 | P96: 0 | Q96: no buffer stock target | R96: no buffer stock target
A97: 67008412 | B97: TESTING 251 | C97: Category Bau Badan | D97: PC | E97: T | F97: 500 | G97: 1120 | J97: 67008412 | K97: TESTING 251 | L97: Category Bau Badan | M97: PC | N97: T | O97: 500 | P97: 1120 | Q97: 2.24 | R97: Completed
A98: 67008414 | B98: TESTING 252 | C98: Category Bau Badan | D98: PC | E98: T | F98: 0 | G98: 0 | J98: 67008414 | K98: TESTING 252 | L98: Category Bau Badan | M98: PC | N98: T | O98: 0 | P98: 0 | Q98: no buffer stock target | R98: no buffer stock target
A99: 67008416 | B99: TESTING 253 | C99: Category Bau Badan | D99: PC | E99: T | F99: 250 | G99: 620 | J99: 67008416 | K99: TESTING 253 | L99: Category Bau Badan | M99: PC | N99: T | O99: 250 | P99: 620 | Q99: 2.48 | R99: Completed
A100: 67008418 | B100: TESTING 254 | C100: Category Bau Badan | D100: PC | E100: T | F100: 250 | G100: 270 | J100: 67008418 | K100: TESTING 254 | L100: Category Bau Badan | M100: PC | N100: T | O100: 250 | P100: 270 | Q100: 1.08 | R100: Completed
A101: 67008426 | B101: TESTING 255 | C101: Category Bau Badan | D101: PC | E101: T | F101: 0 | G101: 0 | J101: 67008426 | K101: TESTING 255 | L101: Category Bau Badan | M101: PC | N101: T | O101: 0 | P101: 0 | Q101: no buffer stock target | R101: no buffer stock target
A102: 67008434 | B102: TESTING 256 | C102: Category Bau Badan | D102: PC | E102: T | F102: 0 | G102: 0 | J102: 67008434 | K102: TESTING 256 | L102: Category Bau Badan | M102: PC | N102: T | O102: 0 | P102: 0 | Q102: no buffer stock target | R102: no buffer stock target
A103: 67008436 | B103: TESTING 257 | C103: Category Bau Badan | D103: PC | E103: T | F103: 0 | G103: 0 | J103: 67008436 | K103: TESTING 257 | L103: Category Bau Badan | M103: PC | N103: T | O103: 0 | P103: 0 | Q103: no buffer stock target | R103: no buffer stock target
A104: 67008477 | B104: TESTING 258 | C104: Category Bau Badan | D104: PC | E104: T | F104: 150 | G104: 300 | J104: 67008477 | K104: TESTING 258 | L104: Category Bau Badan | M104: PC | N104: T | O104: 150 | P104: 300 | Q104: 2 | R104: Completed
A105: 67008479 | B105: TESTING 259 | C105: Category Bau Badan | D105: PC | E105: T | F105: 300 | G105: 410 | J105: 67008479 | K105: TESTING 259 | L105: Category Bau Badan | M105: PC | N105: T | O105: 300 | P105: 410 | Q105: 1.366666667 | R105: Completed
A106: 67008481 | B106: TESTING 260 | C106: Category Bau Badan | D106: PC | E106: T | F106: 0 | G106: 0 | J106: 67008481 | K106: TESTING 260 | L106: Category Bau Badan | M106: PC | N106: T | O106: 0 | P106: 0 | Q106: no buffer stock target | R106: no buffer stock target
A107: 67008483 | B107: TESTING 261 | C107: Category Bau Badan | D107: PC | E107: T | F107: 250 | G107: 590 | J107: 67008483 | K107: TESTING 261 | L107: Category Bau Badan | M107: PC | N107: T | O107: 250 | P107: 590 | Q107: 2.36 | R107: Completed
A108: 67008485 | B108: TESTING 262 | C108: Category Bau Badan | D108: PC | E108: T | F108: 0 | G108: 0 | J108: 67008485 | K108: TESTING 262 | L108: Category Bau Badan | M108: PC | N108: T | O108: 0 | P108: 0 | Q108: no buffer stock target | R108: no buffer stock target
A109: 67008491 | B109: TESTING 263 | C109: Category Bau Badan | D109: PC | E109: T | F109: 0 | G109: 0 | J109: 67008491 | K109: TESTING 263 | L109: Category Bau Badan | M109: PC | N109: T | O109: 0 | P109: 0 | Q109: no buffer stock target | R109: no buffer stock target
A110: 67008495 | B110: TESTING 264 | C110: Category Bau Badan | D110: PC | E110: T | F110: 150 | G110: 290 | J110: 67008495 | K110: TESTING 264 | L110: Category Bau Badan | M110: PC | N110: T | O110: 150 | P110: 290 | Q110: 1.933333333 | R110: Completed
A111: 67008497 | B111: TESTING 265 | C111: Category Bau Badan | D111: PC | E111: T | F111: 300 | G111: 350 | J111: 67008497 | K111: TESTING 265 | L111: Category Bau Badan | M111: PC | N111: T | O111: 300 | P111: 350 | Q111: 1.166666667 | R111: Completed
A112: 67008501 | B112: TESTING 266 | C112: Category Bau Badan | D112: PC | E112: T | F112: 0 | G112: 0 | J112: 67008501 | K112: TESTING 266 | L112: Category Bau Badan | M112: PC | N112: T | O112: 0 | P112: 0 | Q112: no buffer stock target | R112: no buffer stock target
A113: 67008504 | B113: TESTING 267 | C113: Category Bau Badan | D113: PC | E113: T | F113: 150 | G113: 0 | J113: 67008504 | K113: TESTING 267 | L113: Category Bau Badan | M113: PC | N113: T | O113: 150 | P113: 0 | Q113: 0 | R113: In Progress
A114: 67008506 | B114: TESTING 268 | C114: Category Bau Badan | D114: PC | E114: T | F114: 0 | G114: 0 | J114: 67008506 | K114: TESTING 268 | L114: Category Bau Badan | M114: PC | N114: T | O114: 0 | P114: 0 | Q114: no buffer stock target | R114: no buffer stock target
A115: 67008510 | B115: TESTING 269 | C115: Category Bau Badan | D115: PC | E115: T | F115: 750 | G115: 1230 | J115: 67008510 | K115: TESTING 269 | L115: Category Bau Badan | M115: PC | N115: T | O115: 750 | P115: 1230 | Q115: 1.64 | R115: Completed
A116: 67008512 | B116: TESTING 270 | C116: Category Bau Badan | D116: PC | E116: T | F116: 800 | G116: 1180 | J116: 67008512 | K116: TESTING 270 | L116: Category Bau Badan | M116: PC | N116: T | O116: 800 | P116: 1180 | Q116: 1.475 | R116: Completed
A117: 67012293 | B117: TESTING 71 | C117: Category Aneka Kategori | D117: Non-PC | E117: KG | F117: 0 | J117: 67012293 | K117: TESTING 71 | L117: Category Aneka Kategori | M117: Non-PC | N117: KG | O117: 0 | P117: 0 | Q117: no buffer stock target | R117: no buffer stock target
A118: 67014067 | B118: TESTING 72 | C118: Category Peduli Rambut | D118: PC | E118: KG | F118: 0 | J118: 67014067 | K118: TESTING 72 | L118: Category Peduli Rambut | M118: PC | N118: KG | O118: 0 | P118: 0 | Q118: no buffer stock target | R118: no buffer stock target
A119: 67014189 | B119: TESTING 200 | C119: Category Cair Cair PW | D119: PC | E119: T | F119: 0 | J119: =A119 -> 67014189 | K119: TESTING 200 | L119: Category Cair Cair PW | M119: PC | N119: T | O119: 0 | P119: 0 | Q119: no buffer stock target | R119: no buffer stock target
A120: 67015448 | B120: TESTING 111 | C120: Category Daun dan Bubuk Teh | D120: Non-PC | E120: T | F120: 151300 | G120: 307300 | J120: 67015448 | K120: TESTING 111 | L120: Category Daun dan Bubuk Teh | M120: Non-PC | N120: T | O120: 151300 | P120: 307300 | Q120: 2.031064111 | R120: Completed
A121: 67018102 | B121: TESTING 271 | C121: Category Bau Badan | D121: PC | E121: T | F121: 150 | G121: 200 | J121: 67018102 | K121: TESTING 271 | L121: Category Bau Badan | M121: PC | N121: T | O121: 150 | P121: 200 | Q121: 1.333333333 | R121: Completed
A122: 67019746 | B122: TESTING 73 | C122: Category Hand & Body Peduli | D122: PC | E122: T | F122: 200 | G122: 0 | J122: 67019746 | K122: TESTING 73 | L122: Category Hand & Body Peduli | M122: PC | N122: T | O122: 200 | P122: 0 | Q122: 0 | R122: In Progress
A123: 67019812 | B123: TESTING 74 | C123: Category Hand & Body Peduli | D123: PC | E123: T | F123: 150 | G123: 0 | J123: 67019812 | K123: TESTING 74 | L123: Category Hand & Body Peduli | M123: PC | N123: T | O123: 150 | P123: 0 | Q123: 0 | R123: In Progress
A124: 67019816 | B124: TESTING 75 | C124: Category Hand & Body Peduli | D124: PC | E124: T | F124: 61 | G124: 0 | J124: 67019816 | K124: TESTING 75 | L124: Category Hand & Body Peduli | M124: PC | N124: T | O124: 61 | P124: 0 | Q124: 0 | R124: In Progress
A125: 67019830 | B125: TESTING 76 | C125: Category Hand & Body Peduli | D125: PC | E125: T | F125: 300 | G125: 0 | J125: 67019830 | K125: TESTING 76 | L125: Category Hand & Body Peduli | M125: PC | N125: T | O125: 300 | P125: 0 | Q125: 0 | R125: In Progress
A126: 67019836 | B126: TESTING 77 | C126: Category Hand & Body Peduli | D126: PC | E126: T | F126: 106 | G126: 0 | J126: 67019836 | K126: TESTING 77 | L126: Category Hand & Body Peduli | M126: PC | N126: T | O126: 106 | P126: 0 | Q126: 0 | R126: In Progress
A127: 67019840 | B127: TESTING 78 | C127: Category Hand & Body Peduli | D127: PC | E127: T | F127: 300 | G127: 0 | J127: 67019840 | K127: TESTING 78 | L127: Category Hand & Body Peduli | M127: PC | N127: T | O127: 300 | P127: 0 | Q127: 0 | R127: In Progress
A128: 67019861 | B128: TESTING 79 | C128: Category Peduli Rambut | D128: PC | E128: T | F128: 58.8 | G128: 0 | J128: 67019861 | K128: TESTING 79 | L128: Category Peduli Rambut | M128: PC | N128: T | O128: 58.8 | P128: 0 | Q128: 0 | R128: In Progress
A129: 67019888 | B129: TESTING 80 | C129: Category Peduli Rambut | D129: PC | E129: T | F129: 58.8 | G129: 0 | J129: 67019888 | K129: TESTING 80 | L129: Category Peduli Rambut | M129: PC | N129: T | O129: 58.8 | P129: 0 | Q129: 0 | R129: In Progress
A130: 67020427 | B130: TESTING 81 | C130: Category Peduli Rambut | D130: PC | E130: T | F130: 28.8 | G130: 0 | J130: 67020427 | K130: TESTING 81 | L130: Category Peduli Rambut | M130: PC | N130: T | O130: 28.8 | P130: 0 | Q130: 0 | R130: In Progress
A131: 67021739 | B131: TESTING 158 | C131: Category Peduli Rumah Tangga | D131: Non-PC | E131: T | F131: 47.9825067 | G131: 0 | J131: 67021739 | K131: TESTING 158 | L131: Category Peduli Rumah Tangga | M131: Non-PC | N131: T | O131: 47.9825067 | P131: 0 | Q131: 0 | R131: In Progress
A132: 67024051 | B132: TESTING 82 | C132: Category Peduli Rambut | D132: PC | E132: T | F132: 58.8 | G132: 0 | J132: 67024051 | K132: TESTING 82 | L132: Category Peduli Rambut | M132: PC | N132: T | O132: 58.8 | P132: 0 | Q132: 0 | R132: In Progress
A133: 67027619 | B133: TESTING 05 | C133: Category Baby Baby | D133: PC | E133: M | F133: 24000 | G133: 4000 | J133: 67027619 | K133: TESTING 05 | L133: Category Baby Baby | M133: PC | N133: M | O133: 24000 | P133: 4000 | Q133: =IF(O133=0,"no buffer stock target",IFERROR(P133/O133,"NA")) -> 0.1666666667 | R133: =IF(Q133="no buffer stock target","no buffer stock target",(IF(Q133>=80%,"Completed","In Progress"))) -> In Progress
A134: 67030051 | B134: TESTING 83 | C134: Category Hand & Body Peduli | D134: PC | E134: T | F134: 281.0897593 | G134: 0 | J134: 67030051 | K134: TESTING 83 | L134: Category Hand & Body Peduli | M134: PC | N134: T | O134: 281.0897593 | P134: 0 | Q134: 0 | R134: In Progress
A135: 67030055 | B135: TESTING 84 | C135: Category Hand & Body Peduli | D135: PC | E135: T | F135: 463.2981104 | G135: 0 | J135: 67030055 | K135: TESTING 84 | L135: Category Hand & Body Peduli | M135: PC | N135: T | O135: 463.2981104 | P135: 0 | Q135: 0 | R135: In Progress
A136: 67030059 | B136: TESTING 85 | C136: Category Hand & Body Peduli | D136: PC | E136: T | F136: 499.0295294 | G136: 0 | J136: 67030059 | K136: TESTING 85 | L136: Category Hand & Body Peduli | M136: PC | N136: T | O136: 499.0295294 | P136: 0 | Q136: 0 | R136: In Progress
A137: 67032707 | B137: TESTING 214 | C137: Category Muka | D137: PC | E137: T | F137: 0 | G137: 0 | J137: 67032707 | K137: TESTING 214 | L137: Category Muka | M137: PC | N137: T | O137: 0 | P137: 0 | Q137: no buffer stock target | R137: no buffer stock target
A138: 67032925 | B138: TESTING 159 | C138: Category Fabrico Cleaner | D138: Non-PC | E138: T | F138: 0 | J138: 67032925 | K138: TESTING 159 | L138: Category Fabrico Cleaner | M138: Non-PC | N138: T | O138: 0 | P138: 0 | Q138: no buffer stock target | R138: no buffer stock target
A139: 67041434 | B139: TESTING 86 | C139: Category Peduli Rambut | D139: PC | E139: T | F139: 111.6 | G139: 0 | J139: 67041434 | K139: TESTING 86 | L139: Category Peduli Rambut | M139: PC | N139: T | O139: 111.6 | P139: 0 | Q139: 0 | R139: In Progress
A140: 67041488 | B140: TESTING 87 | C140: Category Peduli Rambut | D140: PC | E140: T | F140: 0 | J140: 67041488 | K140: TESTING 87 | L140: Category Peduli Rambut | M140: PC | N140: T | O140: 0 | P140: 0 | Q140: no buffer stock target | R140: no buffer stock target
A141: 67043570 | B141: TESTING 88 | C141: Category Cair Cair PW | D141: PC | E141: T | F141: 84 | G141: 0 | J141: 67043570 | K141: TESTING 88 | L141: Category Cair Cair PW | M141: PC | N141: T | O141: 84 | P141: 0 | Q141: 0 | R141: In Progress
A142: 67043572 | B142: TESTING 89 | C142: Category Cair Cair PW | D142: PC | E142: T | F142: 29 | G142: 0 | J142: 67043572 | K142: TESTING 89 | L142: Category Cair Cair PW | M142: PC | N142: T | O142: 29 | P142: 0 | Q142: 0 | R142: In Progress
A143: 67043590 | B143: TESTING 90 | C143: Category Cair Cair PW | D143: PC | E143: T | F143: 18 | G143: 0 | J143: 67043590 | K143: TESTING 90 | L143: Category Cair Cair PW | M143: PC | N143: T | O143: 18 | P143: 0 | Q143: 0 | R143: In Progress
A144: 67043592 | B144: TESTING 91 | C144: Category Cair Cair PW | D144: PC | E144: T | F144: 18 | G144: 0 | J144: 67043592 | K144: TESTING 91 | L144: Category Cair Cair PW | M144: PC | N144: T | O144: 18 | P144: 0 | Q144: 0 | R144: In Progress
A145: 67044831 | B145: TESTING 215 | C145: Category Muka | D145: PC | E145: T | F145: 0 | J145: 67044831 | K145: TESTING 215 | L145: Category Muka | M145: PC | N145: T | O145: 0 | P145: 0 | Q145: no buffer stock target | R145: no buffer stock target
A146: 67044833 | B146: TESTING 216 | C146: Category Muka | D146: PC | E146: T | F146: 0 | J146: 67044833 | K146: TESTING 216 | L146: Category Muka | M146: PC | N146: T | O146: 0 | P146: 0 | Q146: no buffer stock target | R146: no buffer stock target
A147: 67044890 | B147: TESTING 217 | C147: Category Muka | D147: PC | E147: T | F147: 0 | J147: 67044890 | K147: TESTING 217 | L147: Category Muka | M147: PC | N147: T | O147: 0 | P147: 0 | Q147: no buffer stock target | R147: no buffer stock target
A148: 67045403 | B148: TESTING 92 | C148: Category Peduli Rambut | D148: PC | E148: T | F148: 58.8 | G148: 0 | J148: 67045403 | K148: TESTING 92 | L148: Category Peduli Rambut | M148: PC | N148: T | O148: 58.8 | P148: 0 | Q148: 0 | R148: In Progress
A149: 67048538 | B149: TESTING 160 | C149: Category Fabrico Cleaner | D149: Non-PC | E149: T | F149: 0 | J149: 67048538 | K149: TESTING 160 | L149: Category Fabrico Cleaner | M149: Non-PC | N149: T | O149: 0 | P149: 0 | Q149: no buffer stock target | R149: no buffer stock target
A150: 67054396 | B150: TESTING 161 | C150: Category Kondisioner Serat | D150: Non-PC | E150: T | F150: 0 | J150: 67054396 | K150: TESTING 161 | L150: Category Kondisioner Serat | M150: Non-PC | N150: T | O150: 0 | P150: 0 | Q150: no buffer stock target | R150: no buffer stock target
A151: 67057356 | B151: TESTING 162 | C151: Category Kondisioner Serat | D151: Non-PC | E151: T | F151: 0 | J151: 67057356 | K151: TESTING 162 | L151: Category Kondisioner Serat | M151: Non-PC | N151: T | O151: 0 | P151: 0 | Q151: no buffer stock target | R151: no buffer stock target
A152: 67057376 | B152: TESTING 163 | C152: Category Kondisioner Serat | D152: Non-PC | E152: T | F152: 0 | J152: 67057376 | K152: TESTING 163 | L152: Category Kondisioner Serat | M152: Non-PC | N152: T | O152: 0 | P152: 0 | Q152: no buffer stock target | R152: no buffer stock target
A153: 67058433 | B153: TESTING 201 | C153: Category Pelihara Mulut | D153: PC | E153: T | F153: 960.87 | G153: 1200 | J153: 67058433 | K153: TESTING 201 | L153: Category Pelihara Mulut | M153: PC | N153: T | O153: 960.87 | P153: 1200 | Q153: 1.248868213 | R153: Completed
A154: 67058438 | B154: TESTING 218 | C154: Category Pelihara Mulut | D154: PC | E154: T | F154: 528 | G154: 1391.371 | J154: 67058438 | K154: TESTING 218 | L154: Category Pelihara Mulut | M154: PC | N154: T | O154: 528 | P154: 1391.371 | Q154: 2.635172348 | R154: Completed
A155: 67058444 | B155: TESTING 219 | C155: Category Pelihara Mulut | D155: PC | E155: T | F155: 525 | G155: 979.161 | J155: 67058444 | K155: TESTING 219 | L155: Category Pelihara Mulut | M155: =D155 -> PC | N155: T | O155: 525 | P155: 979.161 | Q155: 1.865068571 | R155: Completed
A156: 67058455 | B156: TESTING 202 | C156: Category Pelihara Mulut | D156: PC | E156: T | F156: 317.05 | G156: 868 | J156: =A156 -> 67058455 | K156: TESTING 202 | L156: Category Pelihara Mulut | M156: PC | N156: T | O156: 317.05 | P156: 868 | Q156: 2.737738527 | R156: Completed
A157: 67058457 | B157: TESTING 220 | C157: Category Pelihara Mulut | D157: PC | E157: T | F157: 138.2744779 | G157: 359.332 | J157: 67058457 | K157: TESTING 220 | L157: Category Pelihara Mulut | M157: PC | N157: T | O157: 138.2744779 | P157: 359.332 | Q157: 2.598686362 | R157: Completed
A158: 67058461 | B158: TESTING 203 | C158: Category Pelihara Mulut | D158: PC | E158: T | F158: 0 | G158: 552.4 | J158: 67058461 | K158: TESTING 203 | L158: Category Pelihara Mulut | M158: PC | N158: T | O158: 0 | P158: 552.4 | Q158: no buffer stock target | R158: no buffer stock target
A159: 67058463 | B159: TESTING 221 | C159: Category Pelihara Mulut | D159: PC | E159: T | F159: 190.5593865 | G159: 834.746 | J159: 67058463 | K159: TESTING 221 | L159: Category Pelihara Mulut | M159: PC | N159: T | O159: 190.5593865 | P159: 834.746 | Q159: 4.380503187 | R159: Completed
A160: 67058468 | B160: TESTING 204 | C160: Category Pelihara Mulut | D160: PC | E160: T | F160: 0 | G160: 46.4 | J160: 67058468 | K160: TESTING 204 | L160: Category Pelihara Mulut | M160: PC | N160: T | O160: 0 | P160: 46.4 | Q160: no buffer stock target | R160: no buffer stock target
A161: 67059288 | B161: TESTING 222 | C161: Category Muka | D161: PC | E161: T | F161: 90 | G161: 308.36 | J161: 67059288 | K161: TESTING 222 | L161: Category Muka | M161: PC | N161: T | O161: 90 | P161: 308.36 | Q161: 3.426222222 | R161: Completed
A162: 67059294 | B162: TESTING 223 | C162: Category Muka | D162: PC | E162: T | F162: 84 | G162: 213.85 | J162: 67059294 | K162: TESTING 223 | L162: Category Muka | M162: PC | N162: T | O162: 84 | P162: 213.85 | Q162: 2.545833333 | R162: Completed
A163: 67059300 | B163: TESTING 224 | C163: Category Muka | D163: PC | E163: T | F163: 120 | G163: 0 | J163: 67059300 | K163: TESTING 224 | L163: Category Muka | M163: PC | N163: T | O163: 120 | P163: 0 | Q163: 0 | R163: In Progress
A164: 67065980 | B164: TESTING 164 | C164: Category Peduli Rumah Tangga | D164: Non-PC | E164: T | F164: 85.39529461 | G164: 0 | J164: 67065980 | K164: TESTING 164 | L164: Category Peduli Rumah Tangga | M164: Non-PC | N164: T | O164: 85.39529461 | P164: 0 | Q164: 0 | R164: In Progress
A165: 67067127 | B165: TESTING 165 | C165: Category Fabrico Cleaner | D165: Non-PC | E165: T | F165: 0 | J165: 67067127 | K165: TESTING 165 | L165: Category Fabrico Cleaner | M165: Non-PC | N165: T | O165: 0 | P165: 0 | Q165: no buffer stock target | R165: no buffer stock target
A166: 67067550 | B166: TESTING 41 | C166: Category Muka | D166: PC | E166: T | F166: 0 | J166: 67067550 | K166: TESTING 41 | L166: Category Muka | M166: PC | N166: T | O166: 0 | P166: 0 | Q166: no buffer stock target | R166: no buffer stock target
A167: 67067568 | B167: TESTING 42 | C167: Category Muka | D167: PC | E167: T | F167: 0 | J167: 67067568 | K167: TESTING 42 | L167: Category Muka | M167: PC | N167: T | O167: 0 | P167: 0 | Q167: no buffer stock target | R167: no buffer stock target
A168: 67067582 | B168: TESTING 43 | C168: Category Muka | D168: PC | E168: T | F168: 0 | J168: 67067582 | K168: TESTING 43 | L168: Category Muka | M168: PC | N168: T | O168: 0 | P168: 0 | Q168: no buffer stock target | R168: no buffer stock target
A169: 67070194 | B169: TESTING 272 | C169: Category Bau Badan | D169: PC | E169: T | F169: 300 | G169: 450 | J169: 67070194 | K169: TESTING 272 | L169: Category Bau Badan | M169: PC | N169: T | O169: 300 | P169: 450 | Q169: 1.5 | R169: Completed
A170: 67074839 | B170: TESTING 93 | C170: Category Peduli Rambut | D170: PC | E170: T | F170: 111.6 | G170: 0 | J170: 67074839 | K170: TESTING 93 | L170: Category Peduli Rambut | M170: PC | N170: T | O170: 111.6 | P170: 0 | Q170: 0 | R170: In Progress
A171: 67074845 | B171: TESTING 94 | C171: Category Peduli Rambut | D171: PC | E171: T | F171: 134.4 | G171: 0 | J171: 67074845 | K171: TESTING 94 | L171: Category Peduli Rambut | M171: PC | N171: T | O171: 134.4 | P171: 0 | Q171: 0 | R171: In Progress
A172: 67074851 | B172: TESTING 95 | C172: Category Peduli Rambut | D172: PC | E172: T | F172: 55.8 | G172: 0 | J172: 67074851 | K172: TESTING 95 | L172: Category Peduli Rambut | M172: PC | N172: T | O172: 55.8 | P172: 0 | Q172: 0 | R172: In Progress
A173: 67074876 | B173: TESTING 96 | C173: Category Peduli Rambut | D173: PC | E173: T | F173: 134.4 | G173: 0 | J173: 67074876 | K173: TESTING 96 | L173: Category Peduli Rambut | M173: PC | N173: T | O173: 134.4 | P173: 0 | Q173: 0 | R173: In Progress
A174: 67074911 | B174: TESTING 97 | C174: Category Peduli Rambut | D174: PC | E174: T | F174: 111.6 | G174: 0 | J174: 67074911 | K174: TESTING 97 | L174: Category Peduli Rambut | M174: PC | N174: T | O174: 111.6 | P174: 0 | Q174: 0 | R174: In Progress
A175: 67074924 | B175: TESTING 98 | C175: Category Peduli Rambut | D175: PC | E175: T | F175: 55.8 | G175: 0 | J175: 67074924 | K175: TESTING 98 | L175: Category Peduli Rambut | M175: PC | N175: T | O175: 55.8 | P175: 0 | Q175: 0 | R175: In Progress
A176: 67077587 | B176: TESTING 225 | C176: Category Pelihara Mulut | D176: PC | E176: T | F176: 394.587 | G176: 280.297 | J176: 67077587 | K176: TESTING 225 | L176: Category Pelihara Mulut | M176: PC | N176: T | O176: 394.587 | P176: 280.297 | Q176: 0.7103553842 | R176: In Progress
A177: 67077591 | B177: TESTING 226 | C177: Category Pelihara Mulut | D177: PC | E177: T | F177: 348.759 | G177: 186252 | J177: 67077591 | K177: TESTING 226 | L177: Category Pelihara Mulut | M177: PC | N177: T | O177: 348.759 | P177: 186252 | Q177: 534.0421322 | R177: Completed
A178: 67077595 | B178: TESTING 227 | C178: Category Pelihara Mulut | D178: PC | E178: T | F178: 366.12 | G178: 689.423 | J178: 67077595 | K178: TESTING 227 | L178: Category Pelihara Mulut | M178: PC | N178: T | O178: 366.12 | P178: 689.423 | Q178: 1.883052005 | R178: Completed
A179: 67079467 | B179: TESTING 12 | C179: Category Muka | D179: PC | E179: T | F179: 0 | J179: 67079467 | K179: TESTING 12 | L179: Category Muka | M179: PC | N179: T | O179: 0 | P179: 0 | Q179: no buffer stock target | R179: no buffer stock target
A180: 67079471 | B180: TESTING 13 | C180: Category Muka | D180: PC | E180: T | F180: 80 | J180: 67079471 | K180: TESTING 13 | L180: Category Muka | M180: PC | N180: T | O180: 80 | P180: 0 | Q180: 0 | R180: In Progress
A181: 67079473 | B181: TESTING 14 | C181: Category Muka | D181: PC | E181: T | F181: 13.2 | J181: 67079473 | K181: TESTING 14 | L181: Category Muka | M181: PC | N181: T | O181: 13.2 | P181: 0 | Q181: 0 | R181: In Progress
A182: 67079487 | B182: TESTING 273 | C182: Category Muka | D182: PC | E182: T | F182: 120 | G182: 150 | J182: 67079487 | K182: TESTING 273 | L182: Category Muka | M182: PC | N182: T | O182: 120 | P182: 150 | Q182: 1.25 | R182: Completed
A183: 67081078 | B183: TESTING 205 | C183: Category Pelihara Mulut | D183: PC | E183: T | F183: 0 | J183: 67081078 | K183: TESTING 205 | L183: Category Pelihara Mulut | M183: PC | N183: T | O183: 0 | P183: 0 | Q183: no buffer stock target | R183: no buffer stock target
A184: 67082187 | B184: TESTING 166 | C184: Category Fabrico Cleaner | D184: Non-PC | E184: T | F184: 1 | G184: 2.15 | J184: 67082187 | K184: TESTING 166 | L184: Category Fabrico Cleaner | M184: Non-PC | N184: T | O184: 1 | P184: 2.15 | Q184: 2.15 | R184: Completed
A185: 67082787 | B185: TESTING 108 | C185: Category Aneka Kategori | D185: Non-PC | E185: M | F185: 336438.92 | G185: 588438.92 | J185: 67082787 | K185: TESTING 108 | L185: Category Aneka Kategori | M185: Non-PC | N185: M | O185: 336438.92 | P185: 588438.92 | Q185: 1.749021546 | R185: Completed
A186: 67089803 | B186: TESTING 99 | C186: Category Peduli Rambut | D186: PC | E186: T | F186: 58.8 | G186: 0 | J186: 67089803 | K186: TESTING 99 | L186: Category Peduli Rambut | M186: PC | N186: T | O186: 58.8 | P186: 0 | Q186: 0 | R186: In Progress
A187: 67096075 | B187: TESTING 167 | C187: Category Fabrico Cleaner | D187: Non-PC | E187: T | F187: 0 | J187: 67096075 | K187: TESTING 167 | L187: Category Fabrico Cleaner | M187: Non-PC | N187: T | O187: 0 | P187: 0 | Q187: no buffer stock target | R187: no buffer stock target
A188: 67098479 | B188: TESTING 112 | C188: Category Daun dan Bubuk Teh | D188: Non-PC | E188: T | F188: 2667 | G188: 9920 | J188: 67098479 | K188: TESTING 112 | L188: Category Daun dan Bubuk Teh | M188: Non-PC | N188: T | O188: 2667 | P188: 9920 | Q188: 3.719535058 | R188: Completed
A189: 67099447 | B189: TESTING 228 | C189: Category Pelihara Mulut | D189: PC | E189: T | F189: 2361 | G189: 2991.408 | J189: 67099447 | K189: TESTING 228 | L189: Category Pelihara Mulut | M189: PC | N189: T | O189: 2361 | P189: 2991.408 | Q189: 1.267008895 | R189: Completed
A190: 67102739 | B190: TESTING 44 | C190: Category Muka | D190: PC | E190: T | F190: 0 | J190: 67102739 | K190: TESTING 44 | L190: Category Muka | M190: PC | N190: T | O190: 0 | P190: 0 | Q190: no buffer stock target | R190: no buffer stock target
A191: 67106976 | B191: TESTING 229 | C191: Category Muka | D191: PC | E191: T | F191: 120 | G191: 823.005 | J191: 67106976 | K191: TESTING 229 | L191: Category Muka | M191: PC | N191: T | O191: 120 | P191: 823.005 | Q191: 6.858375 | R191: Completed
A192: 67106980 | B192: TESTING 230 | C192: Category Muka | D192: PC | E192: T | F192: 120 | G192: 1045.605 | J192: 67106980 | K192: TESTING 230 | L192: Category Muka | M192: PC | N192: T | O192: 120 | P192: 1045.605 | Q192: 8.713375 | R192: Completed
A193: 67117229 | B193: TESTING 274 | C193: Category Bau Badan | D193: PC | E193: T | F193: 0 | G193: 50 | J193: 67117229 | K193: TESTING 274 | L193: Category Bau Badan | M193: PC | N193: T | O193: 0 | P193: 50 | Q193: no buffer stock target | R193: no buffer stock target
A194: 67117232 | B194: TESTING 275 | C194: Category Bau Badan | D194: PC | E194: T | F194: 0 | G194: 0 | J194: 67117232 | K194: TESTING 275 | L194: Category Bau Badan | M194: PC | N194: T | O194: 0 | P194: 0 | Q194: no buffer stock target | R194: no buffer stock target
A195: 67117913 | B195: TESTING 113 | C195: Category Daun dan Bubuk Teh | D195: Non-PC | E195: T | F195: 0 | J195: 67117913 | K195: TESTING 113 | L195: Category Daun dan Bubuk Teh | M195: Non-PC | N195: T | O195: 0 | P195: 0 | Q195: no buffer stock target | R195: no buffer stock target
A196: 67117917 | B196: TESTING 116 | C196: Category Daun dan Bubuk Teh | D196: Non-PC | E196: T | F196: 0 | J196: 67117917 | K196: TESTING 116 | L196: Category Daun dan Bubuk Teh | M196: Non-PC | N196: T | O196: 0 | P196: 0 | Q196: no buffer stock target | R196: no buffer stock target
A197: 67117928 | B197: TESTING 231 | C197: Category Pelihara Mulut | D197: PC | E197: T | F197: 121.7168376 | G197: 482.683 | J197: 67117928 | K197: TESTING 231 | L197: Category Pelihara Mulut | M197: PC | N197: T | O197: 121.7168376 | P197: 482.683 | Q197: =IF(O197=0,"no buffer stock target",IFERROR(P197/O197,"NA")) -> 3.965622255 | R197: =IF(Q197="no buffer stock target","no buffer stock target",(IF(Q197>=80%,"Completed","In Progress"))) -> Completed
A198: 67117930 | B198: TESTING 232 | C198: Category Pelihara Mulut | D198: PC | E198: T | F198: 180 | G198: 611.156 | J198: 67117930 | K198: TESTING 232 | L198: Category Pelihara Mulut | M198: PC | N198: T | O198: 180 | P198: 611.156 | Q198: 3.395311111 | R198: Completed
A199: 67117935 | B199: TESTING 233 | C199: Category Pelihara Mulut | D199: PC | E199: T | F199: 210 | G199: 720.837 | J199: 67117935 | K199: TESTING 233 | L199: Category Pelihara Mulut | M199: PC | N199: T | O199: 210 | P199: 720.837 | Q199: 3.432557143 | R199: Completed
A200: 67117937 | B200: TESTING 206 | C200: Category Pelihara Mulut | D200: PC | E200: T | F200: 106.0452489 | G200: 762.5 | J200: 67117937 | K200: TESTING 206 | L200: Category Pelihara Mulut | M200: PC | N200: T | O200: 106.0452489 | P200: 762.5 | Q200: 7.190326848 | R200: Completed
A201: 67117939 | B201: TESTING 207 | C201: Category Pelihara Mulut | D201: PC | E201: T | F201: 0 | G201: 776 | J201: 67117939 | K201: TESTING 207 | L201: Category Pelihara Mulut | M201: PC | N201: T | O201: 0 | P201: 776 | Q201: no buffer stock target | R201: no buffer stock target
... 122 more rows

Sheet Supplier Pivot
A3: Material | B3: Material Description | C3: Vendor Name | D3: Sum of Final Buffer Stock Quantity | E3: Sum of Opening Stock Wk14 + 1 | H3: Material | I3: Material Description | J3: Vendor Name | K3: Sum of Final Buffer Stock Quantity | L3: =+E3 -> Sum of Opening Stock Wk14 + 1 | M3: Fulfillment | N3: Status | P3: Row Labels
A4: 20064731 | B4: TESTING 191 | C4: PT 10 TOKOH INDONESIA | D4: 18 | E4: 48 | H4: =A4 -> 20064731 | I4: =B4 -> TESTING 191 | J4: =C4 -> PT 10 TOKOH INDONESIA | K4: =D4 -> 18 | L4: =E4 -> 48 | M4: =IF(K4=0,"no buffer stock target",IFERROR(L4/K4,"NA")) -> 2.666666667 | N4: =IF(M4="no buffer stock target","no buffer stock target",(IF(M4>=80%,"Completed","In Progress"))) -> Completed | P4: PT 01 FLEXIBLES INDONESIA | W4: Completed | X4: In Progress | Y4: no buffer stock target | Z4: Grand Total
A5: 20064732 | B5: TESTING 192 | C5: PT 10 TOKOH INDONESIA | D5: 18 | E5: 10 | H5: =A5 -> 20064732 | I5: TESTING 192 | J5: PT 10 TOKOH INDONESIA | K5: 18 | L5: 10 | M5: =IF(K5=0,"no buffer stock target",IFERROR(L5/K5,"NA")) -> 0.5555555556 | N5: =IF(M5="no buffer stock target","no buffer stock target",(IF(M5>=80%,"Completed","In Progress"))) -> In Progress | P5: PT 02 RUPA RUPA PT.
A6: 20064992 | B6: TESTING 53 | C6: PT 06 INTAN PERMATA | D6: 0 | H6: 20064992 | I6: TESTING 53 | J6: PT 06 INTAN PERMATA | K6: 0 | L6: 0 | M6: no buffer stock target | N6: no buffer stock target | P6: PT 03 A And Z Indonesia PT.
A7: 20068583 | B7: TESTING 54 | C7: PT 06 INTAN PERMATA | D7: 113.3 | E7: 0 | H7: 20068583 | I7: TESTING 54 | J7: PT 06 INTAN PERMATA | K7: 113.3 | L7: 0 | M7: 0 | N7: In Progress | P7: PT 04 PRIMA INDUSTRI
A8: 20068810 | B8: TESTING 55 | C8: PT 06 INTAN PERMATA | D8: 142.8915603 | E8: 0 | H8: 20068810 | I8: TESTING 55 | J8: PT 06 INTAN PERMATA | K8: 142.8915603 | L8: 0 | M8: 0 | N8: In Progress | P8: PT 05 BERKAT DOA PT.
A9: 20074075 | B9: TESTING 56 | C9: PT 06 INTAN PERMATA | D9: 0 | H9: 20074075 | I9: TESTING 56 | J9: PT 06 INTAN PERMATA | K9: 0 | L9: 0 | M9: no buffer stock target | N9: no buffer stock target | P9: PT 06 INTAN PERMATA
A10: 20074080 | B10: TESTING 57 | C10: PT 06 INTAN PERMATA | D10: 0 | H10: 20074080 | I10: TESTING 57 | J10: PT 06 INTAN PERMATA | K10: 0 | L10: 0 | M10: no buffer stock target | N10: no buffer stock target | P10: PT 07 AGUNG UTAMA
A11: 20075079 | B11: TESTING 136 | C11: PT 09 BERDAYA CIPTA BUNGKUS | D11: 3 | E11: 6.2 | H11: 20075079 | I11: TESTING 136 | J11: PT 09 BERDAYA CIPTA BUNGKUS | K11: 3 | L11: 6.2 | M11: 2.066666667 | N11: Completed | P11: PT 08 KIRANA PRINT BERSAMA
A12: 20075080 | B12: TESTING 137 | C12: PT 09 BERDAYA CIPTA BUNGKUS | D12: 2.5 | E12: 5.19 | H12: 20075080 | I12: TESTING 137 | J12: PT 09 BERDAYA CIPTA BUNGKUS | K12: 2.5 | L12: 5.19 | M12: 2.076 | N12: Completed | P12: PT 09 BERDAYA CIPTA BUNGKUS
A13: 20075211 | B13: TESTING 138 | C13: PT 09 BERDAYA CIPTA BUNGKUS | D13: 7 | E13: 6.7 | H13: 20075211 | I13: TESTING 138 | J13: PT 09 BERDAYA CIPTA BUNGKUS | K13: 7 | L13: 6.7 | M13: 0.9571428571 | N13: Completed | P13: PT 10 TOKOH INDONESIA
A14: 20075235 | B14: TESTING 139 | C14: PT 09 BERDAYA CIPTA BUNGKUS | D14: 3 | E14: 6.2 | H14: 20075235 | I14: TESTING 139 | J14: PT 09 BERDAYA CIPTA BUNGKUS | K14: 3 | L14: 6.2 | M14: 2.066666667 | N14: Completed | P14: PT 11 BUNGA KRISANTHIUM OFFSET
A15: 20075237 | B15: TESTING 140 | C15: PT 09 BERDAYA CIPTA BUNGKUS | D15: 5 | E15: 5.23 | H15: 20075237 | I15: TESTING 140 | J15: PT 09 BERDAYA CIPTA BUNGKUS | K15: 5 | L15: 5.23 | M15: 1.046 | N15: Completed | P15: PT 12 LAPAK PEMULA
A16: 20086155 | B16: TESTING 103 | C16: PT 07 AGUNG UTAMA | D16: 105365.8537 | E16: 194965.8537 | H16: 20086155 | I16: TESTING 103 | J16: PT 07 AGUNG UTAMA | K16: 105365.8537 | L16: 194965.8537 | M16: 1.85037037 | N16: Completed | P16: PT 13 PRIMA MASTER LABEL
A17: 20205679 | B17: TESTING 58 | C17: PT 06 INTAN PERMATA | D17: 0 | H17: 20205679 | I17: TESTING 58 | J17: PT 06 INTAN PERMATA | K17: 0 | L17: 0 | M17: no buffer stock target | N17: no buffer stock target | P17: Grand Total
A18: 20205687 | B18: TESTING 59 | C18: PT 06 INTAN PERMATA | D18: 0 | H18: 20205687 | I18: TESTING 59 | J18: PT 06 INTAN PERMATA | K18: 0 | L18: 0 | M18: no buffer stock target | N18: no buffer stock target
A19: 20205690 | B19: TESTING 60 | C19: PT 06 INTAN PERMATA | D19: 396.7585882 | E19: 0 | H19: 20205690 | I19: TESTING 60 | J19: PT 06 INTAN PERMATA | K19: 396.7585882 | L19: 0 | M19: 0 | N19: In Progress
A20: 20207104 | B20: TESTING 193 | C20: PT 10 TOKOH INDONESIA | D20: 14 | E20: 15 | H20: 20207104 | I20: TESTING 193 | J20: PT 10 TOKOH INDONESIA | K20: 14 | L20: 15 | M20: 1.071428571 | N20: Completed
A21: 20207105 | B21: TESTING 194 | C21: PT 10 TOKOH INDONESIA | D21: 14 | E21: 15 | H21: 20207105 | I21: TESTING 194 | J21: PT 10 TOKOH INDONESIA | K21: 14 | L21: 15 | M21: 1.071428571 | N21: Completed
A22: 20227725 | B22: TESTING 61 | C22: PT 06 INTAN PERMATA | D22: 0 | H22: 20227725 | I22: TESTING 61 | J22: PT 06 INTAN PERMATA | K22: 0 | L22: 0 | M22: no buffer stock target | N22: no buffer stock target
A23: 20235325 | B23: TESTING 29 | C23: PT 04 PRIMA INDUSTRI | D23: 129600 | E23: 153600 | H23: 20235325 | I23: TESTING 29 | J23: PT 04 PRIMA INDUSTRI | K23: 129600 | L23: 153600 | M23: 1.185185185 | N23: Completed
A24: 20235326 | B24: TESTING 30 | C24: PT 04 PRIMA INDUSTRI | D24: 168000 | E24: 576000 | H24: 20235326 | I24: TESTING 30 | J24: PT 04 PRIMA INDUSTRI | K24: 168000 | L24: 576000 | M24: 3.428571429 | N24: Completed
A25: 20269437 | B25: TESTING 195 | C25: PT 11 BUNGA KRISANTHIUM OFFSET | D25: 0 | E25: 488 | H25: 20269437 | I25: TESTING 195 | J25: PT 11 BUNGA KRISANTHIUM OFFSET | K25: 0 | L25: 488 | M25: no buffer stock target | N25: no buffer stock target
A26: 20285561 | B26: TESTING 62 | C26: PT 06 INTAN PERMATA | D26: 36.29835294 | E26: 0 | H26: 20285561 | I26: TESTING 62 | J26: PT 06 INTAN PERMATA | K26: 36.29835294 | L26: 0 | M26: 0 | N26: In Progress
A27: 20288686 | B27: TESTING 63 | C27: PT 06 INTAN PERMATA | D27: 0 | H27: 20288686 | I27: TESTING 63 | J27: PT 06 INTAN PERMATA | K27: 0 | L27: 0 | M27: no buffer stock target | N27: no buffer stock target
A28: 20295913 | B28: TESTING 141 | C28: PT 09 BERDAYA CIPTA BUNGKUS | D28: 0 | H28: 20295913 | I28: TESTING 141 | J28: PT 09 BERDAYA CIPTA BUNGKUS | K28: 0 | L28: 0 | M28: no buffer stock target | N28: no buffer stock target
A29: 20298777 | B29: TESTING 109 | C29: PT 08 KIRANA PRINT BERSAMA | D29: 10500 | E29: 28900 | H29: 20298777 | I29: TESTING 109 | J29: PT 08 KIRANA PRINT BERSAMA | K29: 10500 | L29: 28900 | M29: 2.752380952 | N29: Completed
A30: 21037332 | B30: TESTING 240 | C30: PT 13 PRIMA MASTER LABEL | D30: 50 | E30: 144 | H30: 21037332 | I30: TESTING 240 | J30: PT 13 PRIMA MASTER LABEL | K30: 50 | L30: 144 | M30: 2.88 | N30: Completed
A31: 21037333 | B31: TESTING 31 | C31: PT 04 PRIMA INDUSTRI | D31: 0 | E31: 0 | H31: 21037333 | I31: TESTING 31 | J31: PT 04 PRIMA INDUSTRI | K31: 0 | L31: 0 | M31: no buffer stock target | N31: no buffer stock target
A32: 21037340 | B32: TESTING 32 | C32: PT 04 PRIMA INDUSTRI | D32: 0 | E32: 0 | H32: 21037340 | I32: TESTING 32 | J32: PT 04 PRIMA INDUSTRI | K32: 0 | L32: 0 | M32: no buffer stock target | N32: no buffer stock target
A33: 21070446 | B33: TESTING 241 | C33: PT 13 PRIMA MASTER LABEL | D33: 100 | E33: 205 | H33: 21070446 | I33: TESTING 241 | J33: PT 13 PRIMA MASTER LABEL | K33: 100 | L33: 205 | M33: 2.05 | N33: Completed
A34: 21071674 | B34: TESTING 142 | C34: PT 09 BERDAYA CIPTA BUNGKUS | D34: 2.5 | E34: 5.01 | H34: 21071674 | I34: TESTING 142 | J34: PT 09 BERDAYA CIPTA BUNGKUS | K34: 2.5 | L34: 5.01 | M34: 2.004 | N34: Completed
A35: 21072071 | B35: TESTING 28 | C35: PT 03 A And Z Indonesia PT. | D35: 112 | E35: 276 | H35: 21072071 | I35: TESTING 28 | J35: PT 03 A And Z Indonesia PT. | K35: 112 | L35: 276 | M35: 2.464285714 | N35: Completed
A36: 21073442 | B36: TESTING 294 | C36: PT 13 PRIMA MASTER LABEL | D36: 0 | E36: 24 | H36: 21073442 | I36: TESTING 294 | J36: PT 13 PRIMA MASTER LABEL | K36: 0 | L36: 24 | M36: no buffer stock target | N36: no buffer stock target
A37: 21074502 | B37: TESTING 209 | C37: PT 12 LAPAK PEMULA | D37: 61.20082353 | E37: 21.051 | H37: 21074502 | I37: TESTING 209 | J37: PT 12 LAPAK PEMULA | K37: 61.20082353 | L37: 21.051 | M37: 0.3439659597 | N37: In Progress
A38: 21075139 | B38: TESTING 143 | C38: PT 09 BERDAYA CIPTA BUNGKUS | D38: 0 | H38: 21075139 | I38: TESTING 143 | J38: PT 09 BERDAYA CIPTA BUNGKUS | K38: 0 | L38: 0 | M38: no buffer stock target | N38: no buffer stock target
A39: 21075273 | B39: TESTING 210 | C39: PT 12 LAPAK PEMULA | D39: 184.9577059 | E39: 359.178 | H39: 21075273 | I39: TESTING 210 | J39: PT 12 LAPAK PEMULA | K39: 184.9577059 | L39: 359.178 | M39: 1.941946664 | N39: Completed
A40: 21075288 | B40: TESTING 144 | C40: PT 09 BERDAYA CIPTA BUNGKUS | D40: 13.90199676 | E40: 14.29 | H40: 21075288 | I40: TESTING 144 | J40: PT 09 BERDAYA CIPTA BUNGKUS | K40: 13.90199676 | L40: 14.29 | M40: 1.027909893 | N40: Completed
A41: 21075289 | B41: TESTING 145 | C41: PT 09 BERDAYA CIPTA BUNGKUS | D41: 19.37482476 | E41: 19.45 | H41: 21075289 | I41: TESTING 145 | J41: PT 09 BERDAYA CIPTA BUNGKUS | K41: 19.37482476 | L41: 19.45 | M41: 1.003880048 | N41: Completed
A42: 21075828 | B42: TESTING 146 | C42: PT 09 BERDAYA CIPTA BUNGKUS | D42: 0 | H42: 21075828 | I42: TESTING 146 | J42: PT 09 BERDAYA CIPTA BUNGKUS | K42: 0 | L42: 0 | M42: no buffer stock target | N42: no buffer stock target
A43: 21135205 | B43: TESTING 147 | C43: PT 09 BERDAYA CIPTA BUNGKUS | D43: 0 | H43: 21135205 | I43: TESTING 147 | J43: PT 09 BERDAYA CIPTA BUNGKUS | K43: 0 | L43: 0 | M43: no buffer stock target | N43: no buffer stock target
A44: 21135206 | B44: TESTING 148 | C44: PT 09 BERDAYA CIPTA BUNGKUS | D44: 0 | H44: 21135206 | I44: TESTING 148 | J44: PT 09 BERDAYA CIPTA BUNGKUS | K44: 0 | L44: 0 | M44: no buffer stock target | N44: no buffer stock target
A45: 21138450 | B45: TESTING 149 | C45: PT 09 BERDAYA CIPTA BUNGKUS | D45: 0 | H45: 21138450 | I45: TESTING 149 | J45: PT 09 BERDAYA CIPTA BUNGKUS | K45: 0 | L45: 0 | M45: no buffer stock target | N45: no buffer stock target
A46: 21138459 | B46: TESTING 150 | C46: PT 09 BERDAYA CIPTA BUNGKUS | D46: 3 | E46: 6.17 | H46: 21138459 | I46: TESTING 150 | J46: PT 09 BERDAYA CIPTA BUNGKUS | K46: 3 | L46: 6.17 | M46: 2.056666667 | N46: Completed
A47: 21138464 | B47: TESTING 151 | C47: PT 09 BERDAYA CIPTA BUNGKUS | D47: 0 | H47: 21138464 | I47: TESTING 151 | J47: PT 09 BERDAYA CIPTA BUNGKUS | K47: 0 | L47: 0 | M47: no buffer stock target | N47: no buffer stock target
A48: 21139000 | B48: TESTING 211 | C48: PT 12 LAPAK PEMULA | D48: 0 | E48: 840 | H48: 21139000 | I48: TESTING 211 | J48: PT 12 LAPAK PEMULA | K48: 0 | L48: 840 | M48: no buffer stock target | N48: no buffer stock target
A49: 21139027 | B49: TESTING 33 | C49: PT 04 PRIMA INDUSTRI | D49: 62400 | E49: 9600 | H49: 21139027 | I49: TESTING 33 | J49: PT 04 PRIMA INDUSTRI | K49: 62400 | L49: 9600 | M49: 0.1538461538 | N49: In Progress
A50: 21140526 | B50: TESTING 152 | C50: PT 09 BERDAYA CIPTA BUNGKUS | D50: 0 | H50: 21140526 | I50: TESTING 152 | J50: PT 09 BERDAYA CIPTA BUNGKUS | K50: 0 | L50: 0 | M50: no buffer stock target | N50: no buffer stock target
A51: 21140527 | B51: TESTING 153 | C51: PT 09 BERDAYA CIPTA BUNGKUS | D51: 0 | H51: 21140527 | I51: TESTING 153 | J51: PT 09 BERDAYA CIPTA BUNGKUS | K51: 0 | L51: 0 | M51: no buffer stock target | N51: no buffer stock target
A52: 21143282 | B52: TESTING 154 | C52: PT 09 BERDAYA CIPTA BUNGKUS | D52: 0 | H52: 21143282 | I52: TESTING 154 | J52: PT 09 BERDAYA CIPTA BUNGKUS | K52: 0 | L52: 0 | M52: no buffer stock target | N52: no buffer stock target
A53: 21145375 | B53: TESTING 64 | C53: PT 06 INTAN PERMATA | D53: 127.872 | E53: 0 | H53: 21145375 | I53: TESTING 64 | J53: PT 06 INTAN PERMATA | K53: 127.872 | L53: 0 | M53: 0 | N53: In Progress
A54: 21149159 | B54: TESTING 181 | C54: PT 09 BERDAYA CIPTA BUNGKUS | D54: 0 | H54: 21149159 | I54: TESTING 181 | J54: PT 09 BERDAYA CIPTA BUNGKUS | K54: 0 | L54: 0 | M54: no buffer stock target | N54: no buffer stock target
A55: 21150299 | B55: TESTING 01 | C55: PT 01 FLEXIBLES INDONESIA | D55: 24000 | E55: 53000 | H55: 21150299 | I55: TESTING 01 | J55: PT 01 FLEXIBLES INDONESIA | K55: 24000 | L55: 53000 | M55: 2.208333333 | N55: Completed
A56: 21150302 | B56: TESTING 02 | C56: PT 01 FLEXIBLES INDONESIA | D56: 24000 | E56: 36000 | H56: =A56 -> 21150302 | I56: TESTING 02 | J56: PT 01 FLEXIBLES INDONESIA | K56: 24000 | L56: 36000 | M56: 1.5 | N56: Completed
A57: 21152885 | B57: TESTING 03 | C57: PT 01 FLEXIBLES INDONESIA | D57: 24000 | E57: 95000 | H57: 21152885 | I57: TESTING 03 | J57: PT 01 FLEXIBLES INDONESIA | K57: 24000 | L57: 95000 | M57: 3.958333333 | N57: Completed
A58: 21152887 | B58: TESTING 04 | C58: PT 01 FLEXIBLES INDONESIA | D58: 24000 | E58: 16000 | H58: 21152887 | I58: TESTING 04 | J58: PT 01 FLEXIBLES INDONESIA | K58: 24000 | L58: 16000 | M58: 0.6666666667 | N58: In Progress
A59: 21154381 | B59: TESTING 196 | C59: PT 11 BUNGA KRISANTHIUM OFFSET | D59: 0 | H59: 21154381 | I59: TESTING 196 | J59: PT 11 BUNGA KRISANTHIUM OFFSET | K59: 0 | L59: 0 | M59: no buffer stock target | N59: no buffer stock target
A60: 21154382 | B60: TESTING 197 | C60: PT 11 BUNGA KRISANTHIUM OFFSET | D60: 0 | H60: 21154382 | I60: TESTING 197 | J60: PT 11 BUNGA KRISANTHIUM OFFSET | K60: 0 | L60: 0 | M60: no buffer stock target | N60: no buffer stock target
A61: 21182054 | B61: TESTING 104 | C61: PT 07 AGUNG UTAMA | D61: 383442.2658 | E61: 524242.2658 | H61: 21182054 | I61: TESTING 104 | J61: PT 07 AGUNG UTAMA | K61: 383442.2658 | L61: 524242.2658 | M61: 1.3672 | N61: Completed
A62: 21182147 | B62: TESTING 110 | C62: PT 08 KIRANA PRINT BERSAMA | D62: 23000 | E62: 48804 | H62: 21182147 | I62: TESTING 110 | J62: PT 08 KIRANA PRINT BERSAMA | K62: 23000 | L62: 48804 | M62: 2.121913043 | N62: Completed
A63: 21185682 | B63: TESTING 155 | C63: PT 09 BERDAYA CIPTA BUNGKUS | D63: 1 | E63: 1.05 | H63: 21185682 | I63: TESTING 155 | J63: PT 09 BERDAYA CIPTA BUNGKUS | K63: 1 | L63: 1.05 | M63: 1.05 | N63: Completed
A64: 21185717 | B64: TESTING 65 | C64: PT 06 INTAN PERMATA | D64: 0 | H64: 21185717 | I64: TESTING 65 | J64: PT 06 INTAN PERMATA | K64: 0 | L64: 0 | M64: no buffer stock target | N64: no buffer stock target
A65: 21187260 | B65: TESTING 134 | C65: PT 08 KIRANA PRINT BERSAMA | D65: 0 | E65: 0 | H65: 21187260 | I65: TESTING 134 | J65: PT 08 KIRANA PRINT BERSAMA | K65: 0 | L65: 0 | M65: no buffer stock target | N65: no buffer stock target
A66: 21188579 | B66: TESTING 156 | C66: PT 09 BERDAYA CIPTA BUNGKUS | D66: 0 | H66: 21188579 | I66: TESTING 156 | J66: PT 09 BERDAYA CIPTA BUNGKUS | K66: 0 | L66: 0 | M66: no buffer stock target | N66: no buffer stock target
A67: 21189043 | B67: TESTING 242 | C67: PT 13 PRIMA MASTER LABEL | D67: 100 | E67: 320 | H67: 21189043 | I67: TESTING 242 | J67: PT 13 PRIMA MASTER LABEL | K67: 100 | L67: 320 | M67: 3.2 | N67: Completed
A68: 21189044 | B68: TESTING 34 | C68: PT 04 PRIMA INDUSTRI | D68: 5700 | E68: 50400 | H68: 21189044 | I68: TESTING 34 | J68: PT 04 PRIMA INDUSTRI | K68: 5700 | L68: 50400 | M68: 8.842105263 | N68: Completed
A69: 62108478 | B69: TESTING 48 | C69: PT 04 PRIMA INDUSTRI | D69: 147.27 | E69: 0 | H69: 62108478 | I69: TESTING 48 | J69: PT 04 PRIMA INDUSTRI | K69: 147.27 | L69: 0 | M69: =IF(K69=0,"no buffer stock target",IFERROR(L69/K69,"NA")) -> 0 | N69: =IF(M69="no buffer stock target","no buffer stock target",(IF(M69>=80%,"Completed","In Progress"))) -> In Progress
A70: 62108911 | B70: TESTING 66 | C70: PT 06 INTAN PERMATA | D70: 642 | E70: 0 | H70: 62108911 | I70: TESTING 66 | J70: PT 06 INTAN PERMATA | K70: 642 | L70: 0 | M70: 0 | N70: In Progress
A71: 62138001 | B71: TESTING 49 | C71: PT 04 PRIMA INDUSTRI | D71: 0 | H71: 62138001 | I71: TESTING 49 | J71: PT 04 PRIMA INDUSTRI | K71: 0 | L71: 0 | M71: no buffer stock target | N71: no buffer stock target
A72: 62138128 | B72: TESTING 50 | C72: PT 04 PRIMA INDUSTRI | D72: 0 | H72: 62138128 | I72: TESTING 50 | J72: PT 04 PRIMA INDUSTRI | K72: 0 | L72: 0 | M72: no buffer stock target | N72: no buffer stock target
A73: 62138166 | B73: TESTING 105 | C73: PT 07 AGUNG UTAMA | D73: 287910.3855 | E73: 947910.3855 | H73: 62138166 | I73: TESTING 105 | J73: PT 07 AGUNG UTAMA | K73: 287910.3855 | L73: 947910.3855 | M73: 3.292379967 | N73: Completed
A74: 62138174 | B74: TESTING 106 | C74: PT 07 AGUNG UTAMA | D74: 324988.9291 | E74: 596588.9291 | H74: 62138174 | I74: TESTING 106 | J74: PT 07 AGUNG UTAMA | K74: 324988.9291 | L74: 596588.9291 | M74: 1.835720776 | N74: Completed
A75: 62145959 | B75: TESTING 35 | C75: PT 04 PRIMA INDUSTRI | D75: 480000 | E75: 1255200 | H75: 62145959 | I75: TESTING 35 | J75: PT 04 PRIMA INDUSTRI | K75: 480000 | L75: 1255200 | M75: 2.615 | N75: Completed
A76: 62147394 | B76: TESTING 120 | C76: PT 08 KIRANA PRINT BERSAMA | D76: 0 | E76: 0 | H76: 62147394 | I76: TESTING 120 | J76: PT 08 KIRANA PRINT BERSAMA | K76: 0 | L76: 0 | M76: no buffer stock target | N76: no buffer stock target
A77: 62176846 | B77: TESTING 51 | C77: PT 04 PRIMA INDUSTRI | D77: 86400 | E77: 172800 | H77: 62176846 | I77: TESTING 51 | J77: PT 04 PRIMA INDUSTRI | K77: 86400 | L77: 172800 | M77: 2 | N77: Completed
A78: 62176898 | B78: TESTING 67 | C78: PT 06 INTAN PERMATA | D78: 0 | H78: 62176898 | I78: TESTING 67 | J78: PT 06 INTAN PERMATA | K78: 0 | L78: 0 | M78: no buffer stock target | N78: no buffer stock target
A79: 62178498 | B79: TESTING 36 | C79: PT 04 PRIMA INDUSTRI | D79: 194400 | E79: 460800 | H79: 62178498 | I79: TESTING 36 | J79: PT 04 PRIMA INDUSTRI | K79: 194400 | L79: 460800 | M79: 2.37037037 | N79: Completed
A80: 62178511 | B80: TESTING 37 | C80: PT 04 PRIMA INDUSTRI | D80: 85100 | E80: 0 | H80: 62178511 | I80: TESTING 37 | J80: PT 04 PRIMA INDUSTRI | K80: 85100 | L80: 0 | M80: 0 | N80: In Progress
A81: 62179445 | B81: TESTING 68 | C81: PT 06 INTAN PERMATA | D81: 0 | H81: 62179445 | I81: TESTING 68 | J81: PT 06 INTAN PERMATA | K81: 0 | L81: 0 | M81: no buffer stock target | N81: no buffer stock target
A82: 62179446 | B82: TESTING 69 | C82: PT 06 INTAN PERMATA | D82: 0 | H82: 62179446 | I82: TESTING 69 | J82: PT 06 INTAN PERMATA | K82: 0 | L82: 0 | M82: no buffer stock target | N82: no buffer stock target
A83: 62179863 | B83: TESTING 38 | C83: PT 04 PRIMA INDUSTRI | D83: 192000 | E83: 336000 | H83: 62179863 | I83: TESTING 38 | J83: PT 04 PRIMA INDUSTRI | K83: 192000 | L83: 336000 | M83: 1.75 | N83: Completed
A84: 62179867 | B84: TESTING 39 | C84: PT 04 PRIMA INDUSTRI | D84: 72000 | E84: 340800 | H84: 62179867 | I84: TESTING 39 | J84: PT 04 PRIMA INDUSTRI | K84: 72000 | L84: 340800 | M84: 4.733333333 | N84: Completed
A85: 62179868 | B85: TESTING 40 | C85: PT 04 PRIMA INDUSTRI | D85: 124800 | E85: 76800 | H85: 62179868 | I85: TESTING 40 | J85: PT 04 PRIMA INDUSTRI | K85: 124800 | L85: 76800 | M85: 0.6153846154 | N85: In Progress
A86: 62876704 | B86: TESTING 157 | C86: PT 09 BERDAYA CIPTA BUNGKUS | D86: 0.81 | E86: 1.67 | H86: 62876704 | I86: TESTING 157 | J86: PT 09 BERDAYA CIPTA BUNGKUS | K86: 0.81 | L86: 1.67 | M86: 2.061728395 | N86: Completed
A87: 62878109 | B87: TESTING 212 | C87: PT 12 LAPAK PEMULA | D87: 186.6327647 | E87: 389.223 | H87: 62878109 | I87: TESTING 212 | J87: PT 12 LAPAK PEMULA | K87: 186.6327647 | L87: 389.223 | M87: 2.085501978 | N87: Completed
A88: 62878112 | B88: TESTING 213 | C88: PT 12 LAPAK PEMULA | D88: 146.8825294 | E88: 582.898 | H88: 62878112 | I88: TESTING 213 | J88: PT 12 LAPAK PEMULA | K88: 146.8825294 | L88: 582.898 | M88: 3.968463794 | N88: Completed
A89: 62888335 | B89: TESTING 107 | C89: PT 07 AGUNG UTAMA | D89: 720263.5914 | E89: 918263.5914 | H89: 62888335 | I89: TESTING 107 | J89: PT 07 AGUNG UTAMA | K89: 720263.5914 | L89: 918263.5914 | M89: 1.27489936 | N89: Completed
A90: 62888461 | B90: TESTING 198 | C90: PT 11 BUNGA KRISANTHIUM OFFSET | D90: 120 | E90: 120 | H90: 62888461 | I90: TESTING 198 | J90: PT 11 BUNGA KRISANTHIUM OFFSET | K90: 120 | L90: 120 | M90: 1 | N90: Completed
A91: 62888482 | B91: TESTING 199 | C91: PT 11 BUNGA KRISANTHIUM OFFSET | D91: 180 | E91: 180 | H91: 62888482 | I91: TESTING 199 | J91: PT 11 BUNGA KRISANTHIUM OFFSET | K91: 180 | L91: 180 | M91: 1 | N91: Completed
A92: 62888804 | B92: TESTING 70 | C92: PT 06 INTAN PERMATA | D92: 600 | E92: 0 | H92: 62888804 | I92: TESTING 70 | J92: PT 06 INTAN PERMATA | K92: 600 | L92: 0 | M92: 0 | N92: In Progress
A93: 67007478 | B93: TESTING 243 | C93: PT 13 PRIMA MASTER LABEL | D93: 150 | E93: 150 | H93: 67007478 | I93: TESTING 243 | J93: PT 13 PRIMA MASTER LABEL | K93: 150 | L93: 150 | M93: 1 | N93: Completed
A94: 67007480 | B94: TESTING 244 | C94: PT 13 PRIMA MASTER LABEL | D94: 0 | E94: 0 | H94: 67007480 | I94: TESTING 244 | J94: PT 13 PRIMA MASTER LABEL | K94: 0 | L94: 0 | M94: no buffer stock target | N94: no buffer stock target
A95: 67007482 | B95: TESTING 245 | C95: PT 13 PRIMA MASTER LABEL | D95: 0 | E95: 0 | H95: 67007482 | I95: TESTING 245 | J95: PT 13 PRIMA MASTER LABEL | K95: 0 | L95: 0 | M95: no buffer stock target | N95: no buffer stock target
A96: 67007484 | B96: TESTING 246 | C96: PT 13 PRIMA MASTER LABEL | D96: 150 | E96: 210 | H96: 67007484 | I96: TESTING 246 | J96: PT 13 PRIMA MASTER LABEL | K96: 150 | L96: 210 | M96: 1.4 | N96: Completed
A97: 67008388 | B97: TESTING 247 | C97: PT 13 PRIMA MASTER LABEL | D97: 0 | E97: 0 | H97: 67008388 | I97: TESTING 247 | J97: PT 13 PRIMA MASTER LABEL | K97: 0 | L97: 0 | M97: no buffer stock target | N97: no buffer stock target
A98: 67008390 | B98: TESTING 248 | C98: PT 13 PRIMA MASTER LABEL | D98: 300 | E98: 440 | H98: 67008390 | I98: TESTING 248 | J98: PT 13 PRIMA MASTER LABEL | K98: 300 | L98: 440 | M98: 1.466666667 | N98: Completed
A99: 67008404 | B99: TESTING 249 | C99: PT 13 PRIMA MASTER LABEL | D99: 300 | E99: 340 | H99: 67008404 | I99: TESTING 249 | J99: PT 13 PRIMA MASTER LABEL | K99: 300 | L99: 340 | M99: 1.133333333 | N99: Completed
A100: 67008408 | B100: TESTING 250 | C100: PT 13 PRIMA MASTER LABEL | D100: 0 | E100: 0 | H100: 67008408 | I100: TESTING 250 | J100: PT 13 PRIMA MASTER LABEL | K100: 0 | L100: 0 | M100: no buffer stock target | N100: no buffer stock target
A101: 67008412 | B101: TESTING 251 | C101: PT 13 PRIMA MASTER LABEL | D101: 500 | E101: 1120 | H101: 67008412 | I101: TESTING 251 | J101: PT 13 PRIMA MASTER LABEL | K101: 500 | L101: 1120 | M101: 2.24 | N101: Completed
A102: 67008414 | B102: TESTING 252 | C102: PT 13 PRIMA MASTER LABEL | D102: 0 | E102: 0 | H102: 67008414 | I102: TESTING 252 | J102: PT 13 PRIMA MASTER LABEL | K102: 0 | L102: 0 | M102: no buffer stock target | N102: no buffer stock target
A103: 67008416 | B103: TESTING 253 | C103: PT 13 PRIMA MASTER LABEL | D103: 250 | E103: 620 | H103: 67008416 | I103: TESTING 253 | J103: PT 13 PRIMA MASTER LABEL | K103: 250 | L103: 620 | M103: 2.48 | N103: Completed
A104: 67008418 | B104: TESTING 254 | C104: PT 13 PRIMA MASTER LABEL | D104: 250 | E104: 270 | H104: 67008418 | I104: TESTING 254 | J104: PT 13 PRIMA MASTER LABEL | K104: 250 | L104: 270 | M104: 1.08 | N104: Completed
A105: 67008426 | B105: TESTING 255 | C105: PT 13 PRIMA MASTER LABEL | D105: 0 | E105: 0 | H105: 67008426 | I105: TESTING 255 | J105: PT 13 PRIMA MASTER LABEL | K105: 0 | L105: 0 | M105: no buffer stock target | N105: no buffer stock target
A106: 67008434 | B106: TESTING 256 | C106: PT 13 PRIMA MASTER LABEL | D106: 0 | E106: 0 | H106: 67008434 | I106: TESTING 256 | J106: PT 13 PRIMA MASTER LABEL | K106: 0 | L106: 0 | M106: no buffer stock target | N106: no buffer stock target
A107: 67008436 | B107: TESTING 257 | C107: PT 13 PRIMA MASTER LABEL | D107: 0 | E107: 0 | H107: =A107 -> 67008436 | I107: TESTING 257 | J107: PT 13 PRIMA MASTER LABEL | K107: 0 | L107: 0 | M107: no buffer stock target | N107: no buffer stock target
A108: 67008477 | B108: TESTING 258 | C108: PT 13 PRIMA MASTER LABEL | D108: 150 | E108: 300 | H108: 67008477 | I108: TESTING 258 | J108: PT 13 PRIMA MASTER LABEL | K108: 150 | L108: 300 | M108: 2 | N108: Completed
A109: 67008479 | B109: TESTING 259 | C109: PT 13 PRIMA MASTER LABEL | D109: 300 | E109: 410 | H109: 67008479 | I109: TESTING 259 | J109: PT 13 PRIMA MASTER LABEL | K109: 300 | L109: 410 | M109: 1.366666667 | N109: Completed
A110: 67008481 | B110: TESTING 260 | C110: PT 13 PRIMA MASTER LABEL | D110: 0 | E110: 0 | H110: 67008481 | I110: TESTING 260 | J110: PT 13 PRIMA MASTER LABEL | K110: 0 | L110: 0 | M110: no buffer stock target | N110: no buffer stock target
A111: 67008483 | B111: TESTING 261 | C111: PT 13 PRIMA MASTER LABEL | D111: 250 | E111: 590 | H111: 67008483 | I111: TESTING 261 | J111: PT 13 PRIMA MASTER LABEL | K111: 250 | L111: 590 | M111: 2.36 | N111: Completed
A112: 67008485 | B112: TESTING 262 | C112: PT 13 PRIMA MASTER LABEL | D112: 0 | E112: 0 | H112: 67008485 | I112: TESTING 262 | J112: PT 13 PRIMA MASTER LABEL | K112: 0 | L112: 0 | M112: no buffer stock target | N112: no buffer stock target
A113: 67008491 | B113: TESTING 263 | C113: PT 13 PRIMA MASTER LABEL | D113: 0 | E113: 0 | H113: 67008491 | I113: TESTING 263 | J113: PT 13 PRIMA MASTER LABEL | K113: 0 | L113: 0 | M113: no buffer stock target | N113: no buffer stock target
A114: 67008495 | B114: TESTING 264 | C114: PT 13 PRIMA MASTER LABEL | D114: 150 | E114: 290 | H114: 67008495 | I114: TESTING 264 | J114: PT 13 PRIMA MASTER LABEL | K114: 150 | L114: 290 | M114: 1.933333333 | N114: Completed
A115: 67008497 | B115: TESTING 265 | C115: PT 13 PRIMA MASTER LABEL | D115: 300 | E115: 350 | H115: 67008497 | I115: TESTING 265 | J115: PT 13 PRIMA MASTER LABEL | K115: 300 | L115: 350 | M115: 1.166666667 | N115: Completed
A116: 67008501 | B116: TESTING 266 | C116: PT 13 PRIMA MASTER LABEL | D116: 0 | E116: 0 | H116: 67008501 | I116: TESTING 266 | J116: PT 13 PRIMA MASTER LABEL | K116: 0 | L116: 0 | M116: no buffer stock target | N116: no buffer stock target
A117: 67008504 | B117: TESTING 267 | C117: PT 13 PRIMA MASTER LABEL | D117: 150 | E117: 0 | H117: 67008504 | I117: TESTING 267 | J117: PT 13 PRIMA MASTER LABEL | K117: 150 | L117: 0 | M117: 0 | N117: In Progress
A118: 67008506 | B118: TESTING 268 | C118: PT 13 PRIMA MASTER LABEL | D118: 0 | E118: 0 | H118: 67008506 | I118: TESTING 268 | J118: PT 13 PRIMA MASTER LABEL | K118: 0 | L118: 0 | M118: no buffer stock target | N118: no buffer stock target
A119: 67008510 | B119: TESTING 269 | C119: PT 13 PRIMA MASTER LABEL | D119: 750 | E119: 1230 | H119: 67008510 | I119: TESTING 269 | J119: PT 13 PRIMA MASTER LABEL | K119: 750 | L119: 1230 | M119: 1.64 | N119: Completed
A120: 67008512 | B120: TESTING 270 | C120: PT 13 PRIMA MASTER LABEL | D120: 800 | E120: 1180 | H120: 67008512 | I120: TESTING 270 | J120: PT 13 PRIMA MASTER LABEL | K120: 800 | L120: 1180 | M120: 1.475 | N120: Completed
A121: 67012293 | B121: TESTING 71 | C121: PT 06 INTAN PERMATA | D121: 0 | H121: 67012293 | I121: TESTING 71 | J121: PT 06 INTAN PERMATA | K121: 0 | L121: 0 | M121: no buffer stock target | N121: no buffer stock target
A122: 67014067 | B122: TESTING 72 | C122: PT 06 INTAN PERMATA | D122: 0 | H122: 67014067 | I122: TESTING 72 | J122: PT 06 INTAN PERMATA | K122: 0 | L122: 0 | M122: no buffer stock target | N122: no buffer stock target
A123: 67014189 | B123: TESTING 200 | C123: PT 11 BUNGA KRISANTHIUM OFFSET | D123: 0 | H123: 67014189 | I123: TESTING 200 | J123: PT 11 BUNGA KRISANTHIUM OFFSET | K123: 0 | L123: 0 | M123: no buffer stock target | N123: no buffer stock target
A124: 67015448 | B124: TESTING 111 | C124: PT 08 KIRANA PRINT BERSAMA | D124: 151300 | E124: 307300 | H124: 67015448 | I124: TESTING 111 | J124: PT 08 KIRANA PRINT BERSAMA | K124: 151300 | L124: 307300 | M124: 2.031064111 | N124: Completed
A125: 67018102 | B125: TESTING 271 | C125: PT 13 PRIMA MASTER LABEL | D125: 150 | E125: 200 | H125: 67018102 | I125: TESTING 271 | J125: PT 13 PRIMA MASTER LABEL | K125: 150 | L125: 200 | M125: 1.333333333 | N125: Completed
A126: 67019746 | B126: TESTING 73 | C126: PT 06 INTAN PERMATA | D126: 200 | E126: 0 | H126: 67019746 | I126: TESTING 73 | J126: PT 06 INTAN PERMATA | K126: 200 | L126: 0 | M126: 0 | N126: In Progress
A127: 67019812 | B127: TESTING 74 | C127: PT 06 INTAN PERMATA | D127: 150 | E127: 0 | H127: 67019812 | I127: TESTING 74 | J127: PT 06 INTAN PERMATA | K127: 150 | L127: 0 | M127: 0 | N127: In Progress
A128: 67019816 | B128: TESTING 75 | C128: PT 06 INTAN PERMATA | D128: 61 | E128: 0 | H128: 67019816 | I128: TESTING 75 | J128: PT 06 INTAN PERMATA | K128: 61 | L128: 0 | M128: 0 | N128: In Progress
A129: 67019830 | B129: TESTING 76 | C129: PT 06 INTAN PERMATA | D129: 300 | E129: 0 | H129: 67019830 | I129: TESTING 76 | J129: PT 06 INTAN PERMATA | K129: 300 | L129: 0 | M129: 0 | N129: In Progress
A130: 67019836 | B130: TESTING 77 | C130: PT 06 INTAN PERMATA | D130: 106 | E130: 0 | H130: 67019836 | I130: TESTING 77 | J130: PT 06 INTAN PERMATA | K130: 106 | L130: 0 | M130: 0 | N130: In Progress
A131: 67019840 | B131: TESTING 78 | C131: PT 06 INTAN PERMATA | D131: 300 | E131: 0 | H131: 67019840 | I131: TESTING 78 | J131: PT 06 INTAN PERMATA | K131: 300 | L131: 0 | M131: 0 | N131: In Progress
A132: 67019861 | B132: TESTING 79 | C132: PT 06 INTAN PERMATA | D132: 58.8 | E132: 0 | H132: 67019861 | I132: TESTING 79 | J132: PT 06 INTAN PERMATA | K132: 58.8 | L132: 0 | M132: 0 | N132: In Progress
A133: 67019888 | B133: TESTING 80 | C133: PT 06 INTAN PERMATA | D133: 58.8 | E133: 0 | H133: 67019888 | I133: TESTING 80 | J133: PT 06 INTAN PERMATA | K133: 58.8 | L133: 0 | M133: =IF(K133=0,"no buffer stock target",IFERROR(L133/K133,"NA")) -> 0 | N133: =IF(M133="no buffer stock target","no buffer stock target",(IF(M133>=80%,"Completed","In Progress"))) -> In Progress
A134: 67020427 | B134: TESTING 81 | C134: PT 06 INTAN PERMATA | D134: 28.8 | E134: 0 | H134: 67020427 | I134: TESTING 81 | J134: PT 06 INTAN PERMATA | K134: 28.8 | L134: 0 | M134: 0 | N134: In Progress
A135: 67021739 | B135: TESTING 158 | C135: PT 09 BERDAYA CIPTA BUNGKUS | D135: 47.9825067 | E135: 0 | H135: 67021739 | I135: TESTING 158 | J135: PT 09 BERDAYA CIPTA BUNGKUS | K135: 47.9825067 | L135: 0 | M135: 0 | N135: In Progress
A136: 67024051 | B136: TESTING 82 | C136: PT 06 INTAN PERMATA | D136: 58.8 | E136: 0 | H136: 67024051 | I136: TESTING 82 | J136: PT 06 INTAN PERMATA | K136: 58.8 | L136: 0 | M136: 0 | N136: In Progress
A137: 67025457 | B137: TESTING 132 | C137: PT 08 KIRANA PRINT BERSAMA | D137: 0 | E137: 0 | H137: 67025457 | I137: TESTING 132 | J137: PT 08 KIRANA PRINT BERSAMA | K137: 0 | L137: 0 | M137: no buffer stock target | N137: no buffer stock target
A138: 67025459 | B138: TESTING 133 | C138: PT 08 KIRANA PRINT BERSAMA | D138: 0 | E138: 0 | H138: 67025459 | I138: TESTING 133 | J138: PT 08 KIRANA PRINT BERSAMA | K138: 0 | L138: 0 | M138: no buffer stock target | N138: no buffer stock target
A139: 67027619 | B139: TESTING 05 | C139: PT 01 FLEXIBLES INDONESIA | D139: 24000 | E139: 4000 | H139: 67027619 | I139: TESTING 05 | J139: PT 01 FLEXIBLES INDONESIA | K139: 24000 | L139: 4000 | M139: 0.1666666667 | N139: In Progress
A140: 67028809 | B140: TESTING 130 | C140: PT 08 KIRANA PRINT BERSAMA | D140: 0 | E140: 0 | H140: 67028809 | I140: TESTING 130 | J140: PT 08 KIRANA PRINT BERSAMA | K140: 0 | L140: 0 | M140: no buffer stock target | N140: no buffer stock target
A141: 67028813 | B141: TESTING 131 | C141: PT 08 KIRANA PRINT BERSAMA | D141: 0 | E141: 0 | H141: 67028813 | I141: TESTING 131 | J141: PT 08 KIRANA PRINT BERSAMA | K141: 0 | L141: 0 | M141: no buffer stock target | N141: no buffer stock target
A142: 67030051 | B142: TESTING 83 | C142: PT 06 INTAN PERMATA | D142: 281.0897593 | E142: 0 | H142: 67030051 | I142: TESTING 83 | J142: PT 06 INTAN PERMATA | K142: 281.0897593 | L142: 0 | M142: 0 | N142: In Progress
A143: 67030055 | B143: TESTING 84 | C143: PT 06 INTAN PERMATA | D143: 463.2981104 | E143: 0 | H143: 67030055 | I143: TESTING 84 | J143: PT 06 INTAN PERMATA | K143: 463.2981104 | L143: 0 | M143: 0 | N143: In Progress
A144: 67030059 | B144: TESTING 85 | C144: PT 06 INTAN PERMATA | D144: 499.0295294 | E144: 0 | H144: 67030059 | I144: TESTING 85 | J144: PT 06 INTAN PERMATA | K144: 499.0295294 | L144: 0 | M144: 0 | N144: In Progress
A145: 67032707 | B145: TESTING 214 | C145: PT 12 LAPAK PEMULA | D145: 0 | E145: 0 | H145: 67032707 | I145: TESTING 214 | J145: PT 12 LAPAK PEMULA | K145: 0 | L145: 0 | M145: no buffer stock target | N145: no buffer stock target
A146: 67032925 | B146: TESTING 159 | C146: PT 09 BERDAYA CIPTA BUNGKUS | D146: 0 | H146: 67032925 | I146: TESTING 159 | J146: PT 09 BERDAYA CIPTA BUNGKUS | K146: 0 | L146: 0 | M146: no buffer stock target | N146: no buffer stock target
A147: 67041434 | B147: TESTING 86 | C147: PT 06 INTAN PERMATA | D147: 111.6 | E147: 0 | H147: 67041434 | I147: TESTING 86 | J147: PT 06 INTAN PERMATA | K147: 111.6 | L147: 0 | M147: 0 | N147: In Progress
A148: 67041488 | B148: TESTING 87 | C148: PT 06 INTAN PERMATA | D148: 0 | H148: 67041488 | I148: TESTING 87 | J148: PT 06 INTAN PERMATA | K148: 0 | L148: 0 | M148: no buffer stock target | N148: no buffer stock target
A149: 67043570 | B149: TESTING 88 | C149: PT 06 INTAN PERMATA | D149: 84 | E149: 0 | H149: 67043570 | I149: TESTING 88 | J149: PT 06 INTAN PERMATA | K149: 84 | L149: 0 | M149: 0 | N149: In Progress
A150: 67043572 | B150: TESTING 89 | C150: PT 06 INTAN PERMATA | D150: 29 | E150: 0 | H150: 67043572 | I150: TESTING 89 | J150: PT 06 INTAN PERMATA | K150: 29 | L150: 0 | M150: 0 | N150: In Progress
A151: 67043590 | B151: TESTING 90 | C151: PT 06 INTAN PERMATA | D151: 18 | E151: 0 | H151: 67043590 | I151: TESTING 90 | J151: PT 06 INTAN PERMATA | K151: 18 | L151: 0 | M151: 0 | N151: In Progress
A152: 67043592 | B152: TESTING 91 | C152: PT 06 INTAN PERMATA | D152: 18 | E152: 0 | H152: 67043592 | I152: TESTING 91 | J152: PT 06 INTAN PERMATA | K152: 18 | L152: 0 | M152: 0 | N152: In Progress
A153: 67044831 | B153: TESTING 215 | C153: PT 12 LAPAK PEMULA | D153: 0 | H153: 67044831 | I153: TESTING 215 | J153: PT 12 LAPAK PEMULA | K153: 0 | L153: 0 | M153: no buffer stock target | N153: no buffer stock target
A154: 67044833 | B154: TESTING 216 | C154: PT 12 LAPAK PEMULA | D154: 0 | H154: 67044833 | I154: TESTING 216 | J154: PT 12 LAPAK PEMULA | K154: 0 | L154: 0 | M154: no buffer stock target | N154: no buffer stock target
A155: 67044890 | B155: TESTING 217 | C155: PT 12 LAPAK PEMULA | D155: 0 | H155: 67044890 | I155: TESTING 217 | J155: PT 12 LAPAK PEMULA | K155: 0 | L155: 0 | M155: no buffer stock target | N155: no buffer stock target
A156: 67045403 | B156: TESTING 92 | C156: PT 06 INTAN PERMATA | D156: 58.8 | E156: 0 | H156: 67045403 | I156: TESTING 92 | J156: PT 06 INTAN PERMATA | K156: 58.8 | L156: 0 | M156: 0 | N156: In Progress
A157: 67048538 | B157: TESTING 160 | C157: PT 09 BERDAYA CIPTA BUNGKUS | D157: 0 | H157: 67048538 | I157: TESTING 160 | J157: PT 09 BERDAYA CIPTA BUNGKUS | K157: 0 | L157: 0 | M157: no buffer stock target | N157: no buffer stock target
A158: 67054396 | B158: TESTING 161 | C158: PT 09 BERDAYA CIPTA BUNGKUS | D158: 0 | H158: =A158 -> 67054396 | I158: TESTING 161 | J158: PT 09 BERDAYA CIPTA BUNGKUS | K158: 0 | L158: 0 | M158: no buffer stock target | N158: no buffer stock target
A159: 67056598 | B159: TESTING 22 | C159: PT 02 RUPA RUPA PT. | D159: 0 | H159: 67056598 | I159: TESTING 22 | J159: PT 02 RUPA RUPA PT. | K159: 0 | L159: 0 | M159: no buffer stock target | N159: no buffer stock target
A160: 67056642 | B160: TESTING 21 | C160: PT 02 RUPA RUPA PT. | D160: 30 | H160: 67056642 | I160: TESTING 21 | J160: PT 02 RUPA RUPA PT. | K160: 30 | L160: 0 | M160: 0 | N160: In Progress
A161: 67056654 | B161: TESTING 18 | C161: PT 02 RUPA RUPA PT. | D161: 0 | H161: 67056654 | I161: TESTING 18 | J161: PT 02 RUPA RUPA PT. | K161: 0 | L161: 0 | M161: no buffer stock target | N161: no buffer stock target
A162: 67056658 | B162: TESTING 19 | C162: PT 02 RUPA RUPA PT. | D162: 0 | H162: 67056658 | I162: TESTING 19 | J162: PT 02 RUPA RUPA PT. | K162: 0 | L162: 0 | M162: no buffer stock target | N162: no buffer stock target
A163: 67056662 | B163: TESTING 305 | C163: PT 13 PRIMA MASTER LABEL | D163: 0 | E163: 0 | H163: 67056662 | I163: TESTING 305 | J163: PT 13 PRIMA MASTER LABEL | K163: 0 | L163: 0 | M163: no buffer stock target | N163: no buffer stock target
A164: 67056668 | B164: TESTING 27 | C164: PT 02 RUPA RUPA PT. | D164: 0 | H164: 67056668 | I164: TESTING 27 | J164: PT 02 RUPA RUPA PT. | K164: 0 | L164: 0 | M164: no buffer stock target | N164: no buffer stock target
A165: 67057356 | B165: TESTING 162 | C165: PT 09 BERDAYA CIPTA BUNGKUS | D165: 0 | H165: 67057356 | I165: TESTING 162 | J165: PT 09 BERDAYA CIPTA BUNGKUS | K165: 0 | L165: 0 | M165: no buffer stock target | N165: no buffer stock target
A166: 67057376 | B166: TESTING 163 | C166: PT 09 BERDAYA CIPTA BUNGKUS | D166: 0 | H166: 67057376 | I166: TESTING 163 | J166: PT 09 BERDAYA CIPTA BUNGKUS | K166: 0 | L166: 0 | M166: no buffer stock target | N166: no buffer stock target
A167: 67058433 | B167: TESTING 201 | C167: PT 11 BUNGA KRISANTHIUM OFFSET | D167: 960.87 | E167: 1200 | H167: 67058433 | I167: TESTING 201 | J167: PT 11 BUNGA KRISANTHIUM OFFSET | K167: 960.87 | L167: 1200 | M167: 1.248868213 | N167: Completed
A168: 67058438 | B168: TESTING 218 | C168: PT 12 LAPAK PEMULA | D168: 528 | E168: 1391.371 | H168: 67058438 | I168: TESTING 218 | J168: PT 12 LAPAK PEMULA | K168: 528 | L168: 1391.371 | M168: 2.635172348 | N168: Completed
A169: 67058444 | B169: TESTING 219 | C169: PT 12 LAPAK PEMULA | D169: 525 | E169: 979.161 | H169: 67058444 | I169: TESTING 219 | J169: PT 12 LAPAK PEMULA | K169: 525 | L169: 979.161 | M169: 1.865068571 | N169: Completed
A170: 67058455 | B170: TESTING 202 | C170: PT 11 BUNGA KRISANTHIUM OFFSET | D170: 317.05 | E170: 868 | H170: 67058455 | I170: TESTING 202 | J170: PT 11 BUNGA KRISANTHIUM OFFSET | K170: 317.05 | L170: 868 | M170: 2.737738527 | N170: Completed
A171: 67058457 | B171: TESTING 220 | C171: PT 12 LAPAK PEMULA | D171: 138.2744779 | E171: 359.332 | H171: 67058457 | I171: TESTING 220 | J171: PT 12 LAPAK PEMULA | K171: 138.2744779 | L171: 359.332 | M171: 2.598686362 | N171: Completed
A172: 67058461 | B172: TESTING 203 | C172: PT 11 BUNGA KRISANTHIUM OFFSET | D172: 0 | E172: 552.4 | H172: 67058461 | I172: TESTING 203 | J172: PT 11 BUNGA KRISANTHIUM OFFSET | K172: 0 | L172: 552.4 | M172: no buffer stock target | N172: no buffer stock target
A173: 67058463 | B173: TESTING 221 | C173: PT 12 LAPAK PEMULA | D173: 190.5593865 | E173: 834.746 | H173: 67058463 | I173: TESTING 221 | J173: PT 12 LAPAK PEMULA | K173: 190.5593865 | L173: 834.746 | M173: 4.380503187 | N173: Completed
A174: 67058468 | B174: TESTING 204 | C174: PT 11 BUNGA KRISANTHIUM OFFSET | D174: 0 | E174: 46.4 | H174: 67058468 | I174: TESTING 204 | J174: PT 11 BUNGA KRISANTHIUM OFFSET | K174: 0 | L174: 46.4 | M174: no buffer stock target | N174: no buffer stock target
A175: 67059288 | B175: TESTING 222 | C175: PT 12 LAPAK PEMULA | D175: 90 | E175: 308.36 | H175: 67059288 | I175: TESTING 222 | J175: PT 12 LAPAK PEMULA | K175: 90 | L175: 308.36 | M175: 3.426222222 | N175: Completed
A176: 67059294 | B176: TESTING 223 | C176: PT 12 LAPAK PEMULA | D176: 84 | E176: 213.85 | H176: 67059294 | I176: TESTING 223 | J176: PT 12 LAPAK PEMULA | K176: 84 | L176: 213.85 | M176: 2.545833333 | N176: Completed
A177: 67059300 | B177: TESTING 224 | C177: PT 12 LAPAK PEMULA | D177: 120 | E177: 0 | H177: 67059300 | I177: TESTING 224 | J177: PT 12 LAPAK PEMULA | K177: 120 | L177: 0 | M177: 0 | N177: In Progress
A178: 67062331 | B178: TESTING 129 | C178: PT 08 KIRANA PRINT BERSAMA | D178: 0 | E178: 0 | H178: 67062331 | I178: TESTING 129 | J178: PT 08 KIRANA PRINT BERSAMA | K178: 0 | L178: 0 | M178: no buffer stock target | N178: no buffer stock target
A179: 67062342 | B179: TESTING 135 | C179: PT 08 KIRANA PRINT BERSAMA | D179: 0 | E179: 0 | H179: 67062342 | I179: TESTING 135 | J179: PT 08 KIRANA PRINT BERSAMA | K179: 0 | L179: 0 | M179: no buffer stock target | N179: no buffer stock target
A180: 67062444 | B180: TESTING 122 | C180: PT 08 KIRANA PRINT BERSAMA | D180: 0 | E180: 0 | H180: 67062444 | I180: TESTING 122 | J180: PT 08 KIRANA PRINT BERSAMA | K180: 0 | L180: 0 | M180: no buffer stock target | N180: no buffer stock target
A181: 67062449 | B181: TESTING 124 | C181: PT 08 KIRANA PRINT BERSAMA | D181: 0 | E181: 0 | H181: 67062449 | I181: TESTING 124 | J181: PT 08 KIRANA PRINT BERSAMA | K181: 0 | L181: 0 | M181: no buffer stock target | N181: no buffer stock target
A182: 67062462 | B182: TESTING 126 | C182: PT 08 KIRANA PRINT BERSAMA | D182: 0 | E182: 0 | H182: 67062462 | I182: TESTING 126 | J182: PT 08 KIRANA PRINT BERSAMA | K182: 0 | L182: 0 | M182: no buffer stock target | N182: no buffer stock target
A183: 67062475 | B183: TESTING 125 | C183: PT 08 KIRANA PRINT BERSAMA | D183: 0 | E183: 0 | H183: 67062475 | I183: TESTING 125 | J183: PT 08 KIRANA PRINT BERSAMA | K183: 0 | L183: 0 | M183: no buffer stock target | N183: no buffer stock target
A184: 67062483 | B184: TESTING 123 | C184: PT 08 KIRANA PRINT BERSAMA | D184: 0 | E184: 0 | H184: 67062483 | I184: TESTING 123 | J184: PT 08 KIRANA PRINT BERSAMA | K184: 0 | L184: 0 | M184: no buffer stock target | N184: no buffer stock target
A185: 67062498 | B185: TESTING 128 | C185: PT 08 KIRANA PRINT BERSAMA | D185: 0 | E185: 0 | H185: 67062498 | I185: TESTING 128 | J185: PT 08 KIRANA PRINT BERSAMA | K185: 0 | L185: 0 | M185: no buffer stock target | N185: no buffer stock target
A186: 67062516 | B186: TESTING 127 | C186: PT 08 KIRANA PRINT BERSAMA | D186: 0 | E186: 0 | H186: 67062516 | I186: TESTING 127 | J186: PT 08 KIRANA PRINT BERSAMA | K186: 0 | L186: 0 | M186: no buffer stock target | N186: no buffer stock target
A187: 67065980 | B187: TESTING 164 | C187: PT 09 BERDAYA CIPTA BUNGKUS | D187: 85.39529461 | E187: 0 | H187: 67065980 | I187: TESTING 164 | J187: PT 09 BERDAYA CIPTA BUNGKUS | K187: 85.39529461 | L187: 0 | M187: 0 | N187: In Progress
A188: 67066062 | B188: TESTING 302 | C188: PT 13 PRIMA MASTER LABEL | D188: 60 | E188: 129.97 | H188: 67066062 | I188: TESTING 302 | J188: PT 13 PRIMA MASTER LABEL | K188: 60 | L188: 129.97 | M188: 2.166166667 | N188: Completed
A189: 67067127 | B189: TESTING 165 | C189: PT 09 BERDAYA CIPTA BUNGKUS | D189: 0 | H189: 67067127 | I189: TESTING 165 | J189: PT 09 BERDAYA CIPTA BUNGKUS | K189: 0 | L189: 0 | M189: no buffer stock target | N189: no buffer stock target
A190: 67067199 | B190: TESTING 117 | C190: PT 08 KIRANA PRINT BERSAMA | D190: 0 | E190: 0 | H190: 67067199 | I190: TESTING 117 | J190: PT 08 KIRANA PRINT BERSAMA | K190: 0 | L190: 0 | M190: no buffer stock target | N190: no buffer stock target
A191: 67067550 | B191: TESTING 41 | C191: PT 04 PRIMA INDUSTRI | D191: 0 | H191: 67067550 | I191: TESTING 41 | J191: PT 04 PRIMA INDUSTRI | K191: 0 | L191: 0 | M191: no buffer stock target | N191: no buffer stock target
A192: 67067568 | B192: TESTING 42 | C192: PT 04 PRIMA INDUSTRI | D192: 0 | H192: 67067568 | I192: TESTING 42 | J192: PT 04 PRIMA INDUSTRI | K192: 0 | L192: 0 | M192: no buffer stock target | N192: no buffer stock target
A193: 67067570 | B193: TESTING 298 | C193: PT 13 PRIMA MASTER LABEL | D193: 0 | E193: 120 | H193: 67067570 | I193: TESTING 298 | J193: PT 13 PRIMA MASTER LABEL | K193: 0 | L193: 120 | M193: no buffer stock target | N193: no buffer stock target
A194: 67067582 | B194: TESTING 43 | C194: PT 04 PRIMA INDUSTRI | D194: 0 | H194: 67067582 | I194: TESTING 43 | J194: PT 04 PRIMA INDUSTRI | K194: 0 | L194: 0 | M194: no buffer stock target | N194: no buffer stock target
A195: 67067588 | B195: TESTING 296 | C195: PT 13 PRIMA MASTER LABEL | D195: 0 | E195: 165 | H195: 67067588 | I195: TESTING 296 | J195: PT 13 PRIMA MASTER LABEL | K195: 0 | L195: 165 | M195: no buffer stock target | N195: no buffer stock target
A196: 67069843 | B196: TESTING 16 | C196: PT 02 RUPA RUPA PT. | D196: 0 | H196: 67069843 | I196: TESTING 16 | J196: PT 02 RUPA RUPA PT. | K196: 0 | L196: 0 | M196: no buffer stock target | N196: no buffer stock target
A197: 67069847 | B197: TESTING 17 | C197: PT 02 RUPA RUPA PT. | D197: 0 | H197: 67069847 | I197: TESTING 17 | J197: PT 02 RUPA RUPA PT. | K197: 0 | L197: 0 | M197: =IF(K197=0,"no buffer stock target",IFERROR(L197/K197,"NA")) -> no buffer stock target | N197: =IF(M197="no buffer stock target","no buffer stock target",(IF(M197>=80%,"Completed","In Progress"))) -> no buffer stock target
A198: 67070194 | B198: TESTING 272 | C198: PT 13 PRIMA MASTER LABEL | D198: 300 | E198: 450 | H198: 67070194 | I198: TESTING 272 | J198: PT 13 PRIMA MASTER LABEL | K198: 300 | L198: 450 | M198: 1.5 | N198: Completed
A199: 67070203 | B199: TESTING 312 | C199: PT 13 PRIMA MASTER LABEL | D199: 150 | E199: 230 | H199: 67070203 | I199: TESTING 312 | J199: PT 13 PRIMA MASTER LABEL | K199: 150 | L199: 230 | M199: 1.533333333 | N199: Completed
A200: 67070384 | B200: TESTING 20 | C200: PT 02 RUPA RUPA PT. | D200: 0 | H200: 67070384 | I200: TESTING 20 | J200: PT 02 RUPA RUPA PT. | K200: 0 | L200: 0 | M200: no buffer stock target | N200: no buffer stock target
A201: 67070396 | B201: TESTING 301 | C201: PT 13 PRIMA MASTER LABEL | D201: 0 | E201: 20 | H201: 67070396 | I201: TESTING 301 | J201: PT 13 PRIMA MASTER LABEL | K201: 0 | L201: 20 | M201: no buffer stock target | N201: no buffer stock target
A202: 67072842 | B202: TESTING 23 | C202: PT 02 RUPA RUPA PT. | D202: 0 | H202: 67072842 | I202: TESTING 23 | J202: PT 02 RUPA RUPA PT. | K202: 0 | L202: 0 | M202: no buffer stock target | N202: no buffer stock target
... 121 more rows

Sheet Speedometer
K1: All | L1: ='Cat Pivot'!CategoryAllPCT -> 0.5066921593 | M1: All | N1: ='Supplier Pivot'!SupplierAllPCT -> 0.5066921593 | O1: Category Hand & Body Peduli | P1: Category Pelihara Mulut | Q1: Category Bau Badan | R1: PT 02 RUPA RUPA PT. | S1: PT 11 BUNGA KRISANTHIUM OFFSET | T1: PT 10 TOKOH INDONESIA
K2: Category Hand & Body Peduli | L2: 0 | M2: PT 02 RUPA RUPA PT. | N2: 0 | O2: Category Kecap No 1 | P2: Category Daun dan Bubuk Teh | Q2: Category Kondisioner Serat | R2: PT 06 INTAN PERMATA | S2: PT 03 A And Z Indonesia PT. | T2: PT 09 BERDAYA CIPTA BUNGKUS
K3: Category Kecap No 1 | L3: 0 | M3: PT 06 INTAN PERMATA | N3: 0 | O3: Category Peduli Rumah Tangga | P3: Category Ice Cream | Q3: Category Cair Cair PW | R3: PT 12 LAPAK PEMULA | S3: PT 08 KIRANA PRINT BERSAMA
K4: Category Peduli Rumah Tangga | L4: 0 | M4: PT 12 LAPAK PEMULA | N4: 0.03559270009 | P4: Category Fabrico Cleaner | Q4: Category Peduli Rambut | S4: PT 04 PRIMA INDUSTRI
K5: Category Pelihara Mulut | L5: 0.4037586096 | M5: PT 11 BUNGA KRISANTHIUM OFFSET | N5: 0.356924949 | P5: Category Muka | S5: PT 05 BERKAT DOA PT.
K6: Category Daun dan Bubuk Teh | L6: 0.4543442706 | M6: PT 03 A And Z Indonesia PT. | N6: 0.4057971014 | P6: Category Aneka Kategori | S6: PT 01 FLEXIBLES INDONESIA
C7: CATEGORY | F7: SUPPLIER | K7: Category Ice Cream | L7: 0.4747619048 | M7: PT 08 KIRANA PRINT BERSAMA | N7: 0.4543442706 | P7: Category Bar Bareng | S7: PT 07 AGUNG UTAMA
C8: =D8*$C$11 -> 202.6768637 | D8: =OFR0_MeterSource -> 0.5066921593 | F8: =G8*$C$11 -> 202.6768637 | G8: =Supplier_MeterSource -> 0.5066921593 | K8: Category Fabrico Cleaner | L8: 0.4805468939 | M8: PT 04 PRIMA INDUSTRI | N8: 0.4664087688 | P8: Category Baby Baby | S8: PT 13 PRIMA MASTER LABEL
C9: =D9*$C$11 -> 8 | D9: 0.02 | F9: =G9*$C$11 -> 8 | G9: 0.02 | K9: Category Muka | L9: 0.514928388 | M9: PT 05 BERKAT DOA PT. | N9: 0.4747619048
C10: 589.3231363 | D10: =D11-D8-D9 -> 1.473307841 | F10: 589.3231363 | G10: =G11-G8-G9 -> 1.473307841 | K10: Category Aneka Kategori | L10: 0.5717482453 | M10: PT 01 FLEXIBLES INDONESIA | N10: 0.5116213898
C11: 400 | D11: 2 | F11: 400 | G11: 2 | K11: Category Bar Bareng | L11: 0.5725919598 | M11: PT 07 AGUNG UTAMA | N11: 0.5724602833
K12: Category Baby Baby | L12: 0.5882352941 | M12: PT 13 PRIMA MASTER LABEL | N12: 0.6015207007
C13: 0.5066921593 | F13: 0.5066921593 | K13: Category Bau Badan | L13: 0.6715369486 | M13: PT 10 TOKOH INDONESIA | N13: 0.7272727273
K14: Category Kondisioner Serat | L14: 0.8879242305 | M14: PT 09 BERDAYA CIPTA BUNGKUS | N14: 1.957067968
K15: Category Cair Cair PW | L15: 0.8894194896
K16: Category Peduli Rambut | L16: 9.503146667
